Cogmind - Beta 16 @@@ ROGUE MODE // 2025.12.17 @ 00:17:17 Player: lvl5hm Result: Heading to fleet! Performance ------------- Evolutions (9) 4500 Regions Visited (30) 6000 Robots Destroyed (504) 2520 Value Destroyed (25241) 25241 Prototype IDs (85) 1700 Alien Tech Used (12) 2400 Bonus (20289) 20289 TOTAL SCORE: 62650 Bonus ------- High Alert Combat Kills 1291 Follower Combat Kills 1792 Network Hubs Disabled 200 Met Data Miner 300 Met Imprinter 300 Destroyed Z-Imprinter 1000 Triggered Deep Caves Wall 500 Exposed GOLEM Chamber 500 Met Zhirov 300 Met Warlord at Base 500 MAIN.C Attacked Warlord 500 Warlord Defense Kills 4356 Built Enhanced Grunts 300 A7 Reached Mainframe 300 Met R17 at Cetus 500 Read Decrypted Archives 300 Used Core Reset Matrix 3000 Met Warlord at Research 2000 Win 3000 Friendly Fire -650 Cogmind --------- Core Integrity 1428/2100 Matter 268/300 Energy 1036/1100 System Corruption 0% +Membrane Temperature Cool (6) Movement Walking (110) Location To Fleet Rendezvous Parts ------- > --- POWER (2) -------- (None) > --- PROPULSION (5) --- Assembled Alloy Leg Assembled Alloy Leg Centrium Leg Centrium Leg High-density Centrium Leg > --- UTILITY (15) ----- Assembled Nanovents Assembled Nanovents High-capacity Storage Unit Assembled Biocell Array Assembled Metafiber Network Experimental Signal Interpreter Assembled Combat Suite Precision Energy Filter Assembled Alloy Armor Assembled Alloy Armor Microwarp Drive > --- WEAPON (3) ------- Assembled Focal Cannon Core Cannon > --- INVENTORY (20) --- Zionite Light DM Reactor Experimental Cooling System Zionite Biocell (600) Zionite Biocell (527) Long-range Sensor Array Improved Terrain Scanner Improved Transmission Jammer Advanced Reaction Control System Experimental Cloaking Device Phase Armor Graphene Brace Advanced Point Defense System Subatomic Replicator Compact Tesla Bomb Launcher Core Stripper Peak State ------------ > --- POWER ------------ Assembled Flux Generator > --- PROPULSION ------- Assembled Alloy Leg Assembled Alloy Leg Centrium Leg Centrium Leg High-density Centrium Leg > --- UTILITY ---------- Assembled Nanovents Assembled Nanovents Assembled Nanovents High-capacity Storage Unit Assembled Biocell Array Assembled Metafiber Network Experimental Signal Interpreter Assembled Combat Suite Assembled Alloy Armor Assembled Alloy Armor GOLEM Unit Microwarp Drive > --- WEAPON ----------- Assembled Focal Cannon Core Cannon > --- INVENTORY -------- Zionite Light DM Reactor Experimental Cooling System Zionite Biocell Zionite Biocell Long-range Sensor Array Improved Terrain Scanner Precision Energy Filter Improved Transmission Jammer Advanced Reaction Control System Experimental Cloaking Device Phase Armor Graphene Brace Advanced Point Defense System Subatomic Replicator Compact Tesla Bomb Launcher Core Stripper [Rating: 255] Favorites ----------- Power Assembled Flux Generator Engine Reinforced Deuterium Engine Power Core Fission Core Reactor Assembled Flux Generator Propulsion Assembled Alloy Leg Treads Light Treads Leg Assembled Alloy Leg Wheel Wheel Utility Huge Storage Unit Device GOLEM Unit Storage Huge Storage Unit Processor Improved Signal Interpreter Hackware Hacking Suite Protection Assembled Alloy Armor Artifact Microwarp Drive Weapon Assembled Focal Cannon Energy Gun Small Laser Energy Cannon Assembled Focal Cannon Ballistic Gun Heavy Battle Rifle Ballistic Cannon Improved Light Cannon Launcher Shock Bomb Launcher Special Weapon Multitool Impact Weapon Hammer Slashing Weapon Katana Build | -11 -10 -10 -8 -7 -7 -7 -7 -6 -6 -6 -6 -6 -6 -5 -5 -5 -5 -5 -5 -4 -4 -4 -4 -3 -3 -3 -3 -2 -2 -1 ------- Run | Yrd Mat Sub Mat Fac Low Low Dat Pro Fac Low Low Zio Dee Pro Fac Ext Cet Arc Hub Fac Upp Upp War Pro Res Qua Sec Res Tes Acc Slots Evolved 18 | . . . 4 2 . . . . 2 . . . . . 2 . . . . 2 . . . . 2 . . 2 . 2 Power 1 | . . . . . . . . . . . . . . . 1 . . . . . . . . . . . . . . . Propulsion 3 | . . . . . . . . . . . . . . . 1 . . . . 2 . . . . . . . . . . Utility 13 | . . . 4 2 . . . . 2 . . . . . . . . . . . . . . . 2 . . 1 . 2 Weapon 1 | . . . . . . . . . . . . . . . . . . . . . . . . . . . . 1 . . Parts Attached 290 | 6 6 15 24 33 9 5 . 12 5 5 2 15 20 1 5 3 7 . 5 8 3 5 11 3 17 18 7 18 10 12 Power 27 | 1 . 4 4 4 . 1 . 2 . 2 . 1 4 1 . . . . 1 . . . . . 1 . . 1 . . Engine 14 | 1 . 4 . 3 . 1 . 2 . 2 . . 1 . . . . . . . . . . . . . . . . . Core 6 | . . . 4 1 . . . . . . . 1 . . . . . . . . . . . . . . . . . . Reactor 7 | . . . . . . . . . . . . . 3 1 . . . . 1 . . . . . 1 . . 1 . . Propulsion 45 | 2 . 4 6 4 3 . . . 1 1 1 3 1 . . . . . . 3 1 . 3 . 3 5 . 2 1 1 Treads 9 | 2 . 1 3 . 1 . . . . 1 1 . . . . . . . . . . . . . . . . . . . Leg 20 | . . . . . . . . . . . . . 1 . . . . . . 3 1 . 3 . 3 5 . 2 1 1 Wheel 16 | . . 3 3 4 2 . . . 1 . . 3 . . . . . . . . . . . . . . . . . . Hover . | . . . . . . . . . . . . . . . . . . . . . . . . . . . . . . . Flight . | . . . . . . . . . . . . . . . . . . . . . . . . . . . . . . . Utility 158 | 1 2 3 4 16 4 3 . 7 3 1 . 5 14 . 5 2 3 . 4 5 2 4 6 3 12 12 7 15 7 8 Device 92 | . 1 2 2 9 2 1 . 3 2 . . 2 4 . 3 1 . . 2 4 2 4 3 3 10 7 5 9 6 5 Storage 7 | 1 1 . . . . . . . . . . . 2 . . . . . 2 . . . . . . . . . . 1 Processor 23 | . . . . 1 . . . . . . . 2 1 . 2 1 . . . 1 . . 3 . 2 2 1 4 1 2 Hackware 2 | . . . . 1 . . . . . . . . . . . . . . . . . . . . . 1 . . . . Protection 31 | . . 1 2 5 2 2 . 4 1 1 . 1 7 . . . 3 . . . . . . . . . . 2 . . Artifact 3 | . . . . . . . . . . . . . . . . . . . . . . . . . . 2 1 . . . Weapon 60 | 2 4 4 10 9 2 1 . 3 1 1 1 6 1 . . 1 4 . . . . 1 2 . 1 1 . . 2 3 Energy Gun 9 | 1 . . 3 . . . . 1 . . . . 1 . . . 1 . . . . . 2 . . . . . . . Energy Cannon 23 | . . 1 4 5 2 . . 2 . 1 1 2 . . . . . . . . . . . . . . . . 2 3 Ballistic Gun 5 | 1 . 1 . 1 . . . . . . . 1 . . . . 1 . . . . . . . . . . . . . Ballistic Cannon 6 | . 2 2 2 . . . . . . . . . . . . . . . . . . . . . . . . . . . Launcher 8 | . 1 . 1 1 . . . . 1 . . 1 . . . . 1 . . . . 1 . . 1 . . . . . Special Weapon 3 | . . . . 1 . . . . . . . . . . . 1 1 . . . . . . . . . . . . . Impact Weapon 3 | . 1 . . . . 1 . . . . . . . . . . . . . . . . . . . 1 . . . . Slashing Weapon 3 | . . . . 1 . . . . . . . 2 . . . . . . . . . . . . . . . . . . Piercing Weapon . | . . . . . . . . . . . . . . . . . . . . . . . . . . . . . . . Special Melee Weapon . | . . . . . . . . . . . . . . . . . . . . . . . . . . . . . . . Unidentified Prototypes 51 | . . . 2 1 . . . . . . . . 8 . 1 . 3 . . . . . 9 . 7 7 3 6 3 1 Corrupted Parts 6 | . . . . . . . . 3 . . 1 1 . 1 . . . . . . . . . . . . . . . . System Corruption 41 | . . . . . . . . 21 . . 6 10 . 4 . . . . . . . . . . . . . . . . Parts Lost 59 | . . 7 9 1 2 . . 2 2 9 1 2 10 . . . . . 1 . . . 2 . . 1 2 . 2 6 Power 7 | . . 1 . . . . . 1 1 1 . 1 1 . . . . . . . . . . . . . . . . 1 Propulsion 11 | . . 3 3 . 1 . . . 1 2 1 . . . . . . . . . . . . . . . . . . . Utility 30 | . . 2 3 . 1 . . . . 6 . . 8 . . . . . 1 . . . 1 . . 1 2 . 1 4 Weapon 11 | . . 1 3 1 . . . 1 . . . 1 1 . . . . . . . . . 1 . . . . . 1 1 Highest Loss Streak 6 | . . 2 3 1 1 . . 2 2 6 1 1 5 . . . . . 1 . . . 2 . . 1 1 . 2 3 To Critical Strikes 1 | . . . . . . . . . . . . . . . . . . . . . . . . . . . . . . 1 Average Backups 19 | 1 12 19 21 24 24 24 25 24 23 22 21 23 19 18 17 17 17 18 17 17 17 17 17 15 17 16 15 14 14 14 Power 1 | . . 1 1 1 2 2 3 1 . . . 1 2 3 3 3 3 3 2 3 3 2 2 1 1 1 1 1 . . Propulsion 1 | . . 1 2 4 4 4 4 4 3 2 3 3 2 3 2 2 2 2 2 . . . . . . . . . . . Utility 8 | 1 3 3 4 8 9 9 9 10 10 8 7 7 8 9 9 9 9 10 9 11 10 11 11 10 12 11 10 9 9 9 Weapon 6 | . 8 11 10 7 8 8 8 7 7 9 10 9 4 3 2 1 1 1 1 1 2 1 2 1 2 2 2 3 3 2 Tool/Special . | . . . . . . . . . . . . . . . . . . . . . . . . . . . . . . . Unused Backups 35 | . 3 1 2 6 1 . . 3 . . . 4 5 . . 1 1 . 1 . . . 2 . 2 2 . . . 1 Power 10 | . . 1 . 1 . . . 3 . . . 4 1 . . . . . . . . . . . . . . . . . Propulsion 2 | . . . . . 1 . . . . . . . 1 . . . . . . . . . . . . . . . . . Utility 12 | . 1 . . 3 . . . . . . . . 2 . . 1 1 . 1 . . . 1 . 1 1 . . . . Weapon 9 | . 2 . 2 2 . . . . . . . . . . . . . . . . . . 1 . 1 1 . . . . Tool/Special 2 | . . . . . . . . . . . . . 1 . . . . . . . . . . . . . . . . 1 Average Slot Usage (%) 91 | . 99 99 80 83 85 86 81 86 91 87 98 95 86 92 87 87 87 88 87 88 89 88 88 88 89 89 87 90 90 90 Engine 6 | . 14 13 . 3 12 12 12 10 9 9 17 11 4 . . . . . . . . . . . . . . . . . Reactor 1 | . . . . . . . . . . . . . 3 6 4 5 5 5 5 5 5 5 5 5 4 4 4 4 4 3 Treads 6 | . 28 18 9 . 2 . . . . 10 10 9 . . . . . . . . . . . . . . . . . . Leg 8 | . . . . . . . . . . . . . 5 12 16 17 17 17 17 25 26 25 26 26 23 23 22 21 21 19 Wheel 3 | . . 8 8 11 7 12 12 12 10 . . 1 6 . . . . . . . . . . . . . . . . . Device 22 | . 13 12 24 21 24 23 18 22 33 32 23 28 25 33 26 22 17 17 21 22 20 20 20 17 23 20 25 26 27 30 Storage 9 | . 14 14 9 6 6 6 6 6 5 5 5 5 10 13 11 11 11 11 11 10 10 10 10 10 9 9 9 7 8 10 Processor 6 | . . . . 3 6 6 6 6 5 5 5 9 5 6 7 11 11 11 6 8 10 10 10 13 13 14 8 12 11 3 Protection 7 | . . 1 2 11 12 13 18 14 12 10 21 12 10 6 5 5 10 11 10 5 5 5 5 4 4 4 3 4 4 9 Energy Cannon 6 | . . . 5 5 11 4 . 9 10 7 9 3 9 13 11 11 9 11 11 10 10 9 9 10 8 8 8 12 12 11 Ballistic Cannon 5 | . 22 25 12 3 . . . . . . . . . . . . . . . . . . . . . . . . . . Peak Build Rating 255 | 6 11 16 27 58 58 56 55 58 69 71 76 78 136 131 148 140 138 138 145 158 155 158 172 172 185 211 214 221 225 255 Average Rating 95 | 5 10 13 21 45 56 55 52 55 64 66 74 71 93 130 141 135 136 138 141 152 151 150 161 165 179 188 198 213 210 225 On Entrance 107 | . 6 11 15 22 56 56 55 55 57 68 66 76 65 131 131 135 136 138 138 142 151 154 152 172 162 183 190 198 211 207 Avg Prop Armor Cover (%) 5 | . . 3 12 9 . . . . . . . 5 8 . . . . . . . . . 3 . . . . . . . Naked Turns . | . . . . . . . . . . . . . . . . . . . . . . . . . . . . . . . Heaviest Build 188 | 12 94 98 107 128 134 135 131 141 157 161 155 155 149 91 129 129 131 131 138 135 141 135 129 131 141 136 146 151 188 170 Greatest Support 174 | 40 40 40 40 40 40 20 20 20 20 40 48 48 80 80 104 84 84 84 84 133 133 133 150 150 170 154 172 174 154 172 Greatest Overweight (x) 16 | 3 2 9 10 10 13 6 6 7 14 14 3 11 16 1 1 2 2 1 1 1 1 1 1 . 1 . 1 1 1 1 Average Overweight (x) 2 | . 1 3 3 5 7 6 6 6 7 3 3 2 3 1 1 1 1 1 1 . . . . . . . . . . . Largest Inventory Capacity 25 | 8 25 25 25 25 25 25 25 25 25 25 25 25 25 20 20 20 20 20 20 20 20 20 20 20 20 20 20 20 20 20 Average Capacity 22 | 7 24 25 25 25 25 25 25 25 25 25 25 25 22 20 20 20 20 20 20 20 20 20 20 19 20 20 20 20 20 19 Most Carried 25 | 3 15 23 25 25 25 25 25 25 25 25 25 25 25 20 20 20 20 20 20 20 20 20 20 20 20 20 20 20 20 20 Average Carried 20 | 1 12 20 22 24 24 24 25 24 23 23 22 24 20 20 19 19 19 20 19 19 19 19 19 17 19 19 19 19 19 18 Final Capacity 25 | 8 25 25 25 25 25 25 25 25 25 25 25 25 20 20 20 20 20 20 20 20 20 20 20 20 20 20 20 20 20 20 Final Carried 25 | 3 15 23 24 25 25 25 25 24 25 25 22 25 20 20 20 20 20 20 19 20 20 20 20 19 20 20 20 20 20 17 Class Distribution -------------------- 27% | Mutant 26% | Golem 18% | Scavenger-Mutant 12% | Derelict-Mutant 7% | Alien-Golem 4% | Commander-Golem Dominant Class ---------------- Mutant | -10/Materials Scavenger-Mutant | -10/Subcaves Mutant | -8/Materials Mutant | -7/Factory Mutant | -7/Lower Caves Mutant | -7/Lower Caves Mutant | -7/Data Miner Mutant | -6/Proximity Caves Scavenger-Mutant | -6/Factory Derelict-Mutant | -6/Lower Caves Scavenger-Mutant | -6/Lower Caves Derelict-Mutant | -6/Zion Scavenger-Mutant | -6/Deep Caves Golem | -5/Proximity Caves Golem | -5/Factory Commander-Golem | -5/Extension Commander-Golem | -5/Cetus Commander-Golem | -5/Archives Golem | -5/Hub_04(d) Golem | -4/Factory Golem | -4/Upper Caves Golem | -4/Upper Caves Golem | -4/Warlord Golem | -3/Proximity Caves Golem | -3/Research Golem | -3/Quarantine Alien-Mutant | -3/Section 7 Alien-Gunner | -2/Research Alien-Golem | -2/Testing Alien-Golem | -1/Access Resources | -11 -10 -10 -8 -7 -7 -7 -7 -6 -6 -6 -6 -6 -6 -5 -5 -5 -5 -5 -5 -4 -4 -4 -4 -3 -3 -3 -3 -2 -2 -1 ----------- Run | Yrd Mat Sub Mat Fac Low Low Dat Pro Fac Low Low Zio Dee Pro Fac Ext Cet Arc Hub Fac Upp Upp War Pro Res Qua Sec Res Tes Acc Matter Collected 10162 | 267 290 928 574 929 406 292 . 479 202 398 120 884 1057 32 52 134 90 . 198 90 170 231 228 110 400 564 477 170 190 200 Remotely . | . . . . . . . . . . . . . . . . . . . . . . . . . . . . . . . Salvage Created 24334 | 87 317 404 929 1122 348 214 . 564 560 650 127 1338 1580 207 451 897 145 . 1806 778 344 691 2004 582 371 986 2466 482 1319 2565 Parts 1200 | 12 20 30 47 64 13 16 . 29 33 20 4 95 43 8 12 42 8 . 90 41 18 31 82 12 22 60 119 16 58 155 Haulers Intercepted 5 | . 2 . 1 . . . . . . . . . . . 1 . . . 1 . . . . . . . . . . . Recyclers Shooed 2 | 1 . . . . . . . . . . . . . . 1 . . . . . . . . . . . . . . . Parts Field Recycled . | . . . . . . . . . . . . . . . . . . . . . . . . . . . . . . . Retrieved Matter . | . . . . . . . . . . . . . . . . . . . . . . . . . . . . . . . Parts Self-Destructed 121 | . . 23 . . 9 11 . 6 . 4 . . . 8 . . . . . . 21 27 . 12 . . . . . . Prevented 41 | . . . . . 6 3 . 22 . 2 3 . . . . . . . . . 1 4 . . . . . . . . Parts Restored 2 | . . . . . . . . 1 . . . . . . . . . . . . . . . . 1 . . . . . Broken 2 | . . . . . . . . 1 . . . . . . . . . . . . . . . . 1 . . . . . Kills | -11 -10 -10 -8 -7 -7 -7 -7 -6 -6 -6 -6 -6 -6 -5 -5 -5 -5 -5 -5 -4 -4 -4 -4 -3 -3 -3 -3 -2 -2 -1 ------- Run | Yrd Mat Sub Mat Fac Low Low Dat Pro Fac Low Low Zio Dee Pro Fac Ext Cet Arc Hub Fac Upp Upp War Pro Res Qua Sec Res Tes Acc Combat Hostiles Destroyed 439 | . 6 17 20 20 8 11 . 11 14 13 2 7 57 3 7 13 2 . 28 11 5 13 32 7 5 14 35 8 22 48 Melee 1 | . . . . 1 . . . . . . . . . . . . . . . . . . . . . . . . . . Guns 3 | . . 1 1 . . 1 . . . . . . . . . . . . . . . . . . . . . . . . Cannons 270 | . 3 16 11 9 4 . . 1 5 1 . 2 8 3 7 13 2 . 28 11 5 10 24 7 5 11 26 8 18 32 AOE 134 | . 3 . 7 9 3 10 . 6 8 9 2 1 42 . . . . . . . . 3 7 . . 2 6 . . 16 Classes Destroyed 32 | 1 6 1 4 2 . . . 1 1 1 . 4 4 . . . . . 1 . . . 3 1 . 1 . 1 . . Worker 9 | . . . . 5 . . . . . . . . . . . . . . . . . . . . . 1 . . 1 2 Builder 10 | . 1 . 1 2 . . . . . . . . . . . . . . . . . . . . 1 1 . . 2 2 Tunneler 10 | 4 . . 1 1 . . . . 1 . . . . . . . . . . . . . . . . . . . . 3 Hauler 5 | . 2 . 1 . . . . . . . . . . . 1 . . . 1 . . . . . . . . . . . Recycler 11 | . 2 . 1 4 . . . . . . . . . . . . . . . . . . . . . 1 . . 1 2 Operator 4 | . . . 2 . . . . . . . . . . . . . . . 1 1 . . . . . . . . . . Watcher 11 | . 2 . 2 . . . . . . . . . . . . 2 . . 2 . . . . . . . 2 . . 1 Swarmer 101 | . 3 2 4 7 3 11 . 4 4 3 . . . . 3 . . . 2 . . 6 5 . 1 4 7 . 2 30 Grunt 110 | . 3 2 11 8 2 . . 5 4 4 . . . 2 2 9 . . 13 3 4 4 14 2 1 . 10 . 2 5 Brawler 6 | . . . . . . . . . 1 . . . . . . . . . . 1 . . . 3 . . 1 . . . Duelist 1 | . . . . . . . . . . . . . . . . . . . . . . . . 1 . . . . . . Protector 1 | . . . . . . . . . . . . . . . . . . . . . . . 1 . . . . . . . Sentry 26 | . . . 2 2 . . . 1 2 . . . . 1 . 2 . . 2 3 . 1 . 1 1 . 6 . 2 . Demolisher 2 | . . . . . . . . . . . . . . . . . . . . . . . . . . . . 2 . . Specialist 2 | . . . . . . . . . . . . . . . . . . . 1 . . . 1 . . . . . . . Hunter 30 | . . . 2 . 2 . . . . . 2 . . . 2 . . . 5 2 1 2 1 . 2 1 1 . 7 . Programmer 58 | . . . . 3 1 . . . 3 . . . . . . 1 . . 4 2 . . 8 . . 8 10 1 6 11 Heavy 2 | . . . 1 . . . . . . . . . . . . . . . 1 . . . . . . . . . . . Behemoth 2 | . . . . . . . . 1 . . . . . . . 1 . . . . . . . . . . . . . . Cetus Guard 2 | . . . . . . . . . . . . . . . . . 2 . . . . . . . . . . . . . Combat Programmer 1 | . . . . . . . . . . . . . . . . . . . . . . . . . . . . . . 1 Striker 5 | . . . . . . . . . . . . . . . . . . . . . . . 1 . . . . 4 . . Executioner 2 | . . . . . . . . . . . . . . . . . . . . . . . 1 . . . . 1 . . Alpha 7 4 | . . . . . . . . . . . . . . . . . . . . . . . . . . 1 . . 2 1 Protovariant D 1 | . . . . . . . . . . . . . . . . . . . . . . . . . . . . . 1 . Subdweller 13 | . . 13 . . . . . . . . . . . . . . . . . . . . . . . . . . . . Explorer 1 | . . . . . . . . . . . . 1 . . . . . . . . . . . . . . . . . . Zionite 46 | . . . . . . . . . . . . 46 . . . . . . . . . . . . . . . . . . Z-Light 11 | . . . . . . . . . . . . . 11 . . . . . . . . . . . . . . . . . Decomposer 1 | . . . . . . 1 . . . . . . . . . . . . . . . . . . . . . . . . Packrat 1 | . . . . . 1 . . . . . . . . . . . . . . . . . . . . . . . . . Tinkerer 3 | . . . . . . . . . . . . 3 . . . . . . . . . . . . . . . . . . Assembler 2 | . . . . . . . . . . . . . 2 . . . . . . . . . . . . . . . . . Assembled 41 | . . . . . . . . . . . . . 41 . . . . . . . . . . . . . . . . . Golem 4 | . . . . . . . . . . . . . 4 . . . . . . . . . . . . . . . . . Thug 6 | . . . . . . . . . . 5 . 1 . . . . . . . . . . . . . . . . . . Fireman 1 | . . . . . . . . . . . . 1 . . . . . . . . . . . . . . . . . . Mutant 5 | . . . . . . . . . . 1 . 4 . . . . . . . . . . . . . . . . . . Best Kill Streak 40 | 2 6 2 5 7 3 4 . 4 6 6 2 6 40 1 3 2 1 . 10 4 2 5 11 5 3 4 9 3 3 21 Combat Bots Only 38 | . 3 2 5 4 3 4 . 4 6 6 2 3 38 1 3 2 1 . 9 4 2 5 11 5 2 3 9 3 3 19 Max Kills in Single Turn 11 | 1 2 1 4 3 2 3 . 3 4 3 1 2 11 1 1 1 1 . 1 1 1 2 3 1 2 3 3 1 2 9 Gunslinging . | . . . . . . . . . . . . . . . . . . . . . . . . . . . . . . . Exploded 11 | . 2 . 4 3 2 3 . 3 4 3 1 1 11 . . . . . . . . 1 3 . . 2 3 . . 9 Melee 1 | . . . . 1 . . . . . . . . . . . . . . . . . . . . . . . . . . Uniques/NPCs Destroyed 1 | . . . . . . . . . . . . . 1 . . . . . . . . . . . . . . . . . Z-Imprinter (-6/Deep Caves) Combat | -11 -10 -10 -8 -7 -7 -7 -7 -6 -6 -6 -6 -6 -6 -5 -5 -5 -5 -5 -5 -4 -4 -4 -4 -3 -3 -3 -3 -2 -2 -1 -------- Run | Yrd Mat Sub Mat Fac Low Low Dat Pro Fac Low Low Zio Dee Pro Fac Ext Cet Arc Hub Fac Upp Upp War Pro Res Qua Sec Res Tes Acc Hostile Shots Fired 2641 | . 18 99 106 172 29 14 . 63 81 115 13 87 165 10 27 45 1 . 180 53 66 58 122 23 51 151 297 22 163 410 Missed 1059 | . 6 47 31 50 8 4 . 29 34 32 5 36 48 4 10 15 . . 48 29 26 28 57 8 35 64 137 8 68 192 Hits 1582 | . 12 52 75 122 21 10 . 34 47 83 8 51 117 6 17 30 1 . 132 24 40 30 65 15 16 87 160 14 95 218 Melee 22 | . . . . . . . . . . . . 3 9 . . . . . . . . . 2 4 . . . 4 . . Projectile 1560 | . 12 52 75 122 21 10 . 34 47 83 8 48 108 6 17 30 1 . 132 24 40 30 63 11 16 87 160 10 95 218 AOE 18 | . . . . . . . . . . . . . . . . . . . 1 . . . . . . . . 4 12 1 Critical Strikes 74 | . . . 5 1 2 . . . 1 12 . 3 1 . . 1 1 . 6 . 2 1 6 1 2 4 7 3 7 8 Actively Blocked 12 | . . . . . . . . . . . . . . . . . . . . . . . . . . 2 2 3 5 . Part Disruptions 6 | . . . . . . . . . . . . 2 . . . . . . . . . . 1 . . . 1 . 1 1 Damage Taken 23524 | . 150 1043 1350 918 265 218 . 697 265 1267 151 731 2734 107 248 453 73 . 1737 334 464 335 1215 177 207 1264 1810 320 1782 3209 Core 2870 | . . 63 163 143 16 16 . 25 45 153 13 101 242 52 . 11 . . 360 29 24 45 189 18 8 146 394 14 165 435 Absorbed by Shields 6929 | . . . 136 252 54 . . . 163 372 . . . . . 192 10 . 611 133 192 136 345 168 81 959 1282 333 681 829 Redirected to Core 56 | . . . . . . . . . . . . . . . . . . . . . . . . . . 52 . . 4 . Redirected to Shielding 298 | . . . . 3 . . . . . . . . 295 . . . . . . . . . . . . . . . . . Ignored by Resistances 4369 | . . . . . . . . 13 30 . . . 150 21 51 129 17 . 337 78 136 101 274 71 62 383 788 125 680 923 Regen/Repaired (Parts) 413 | . . . 172 . . . . . . . . 45 . . . . . . . . . . . . . . 127 . 69 . Core Remaining (%) 70 | 100 . 74 70 . . . . 71 . . . . . 28 . . . . 62 . . . . 73 . . 69 . 90 68 Volleys Fired 1385 | 7 26 90 69 51 21 15 . 24 27 32 11 187 72 11 25 39 7 4 95 30 18 28 81 32 32 64 130 23 66 68 Largest 3 | 2 2 2 2 2 2 2 . 2 2 2 1 2 2 2 2 2 2 2 2 2 2 2 2 2 2 2 2 3 3 3 Hottest 325 | 60 66 66 143 148 160 113 . 138 170 170 36 180 132 50 50 50 50 50 50 50 50 71 50 50 50 50 50 75 180 325 Shots Fired 2454 | 14 48 173 117 88 42 16 . 36 44 42 12 324 116 23 44 76 14 8 170 53 35 54 149 60 56 80 206 69 132 153 Gun 52 | 14 . 21 11 5 . 1 . . . . . . . . . . . . . . . . . . . . . . . . Cannon 2219 | . 45 152 102 72 39 2 . 25 41 18 1 279 83 23 44 74 14 8 170 53 35 51 145 60 56 77 200 69 132 149 Launcher 181 | . 3 . 4 11 3 13 . 11 3 24 11 45 33 . . . . . . . . 3 4 . . 3 6 . . 4 Special 2 | . . . . . . . . . . . . . . . . 2 . . . . . . . . . . . . . . Kinetic 312 | 7 45 173 48 29 3 5 . 2 . . . . . . . . . . . . . . . . . . . . . . Thermal 1835 | 7 . . 37 48 15 2 . . 41 17 1 273 34 23 44 74 14 8 170 53 35 51 145 60 56 77 200 69 132 149 Explosive 67 | . 3 . 3 . . . . . 2 5 . 33 21 . . . . . . . . . . . . . . . . . Electromagnetic 238 | . . . 29 11 24 9 . 34 1 20 11 18 61 . . . . . . . . 3 4 . . 3 6 . . 4 Robot Hit Streak 27 | 4 5 21 18 13 9 1 . 9 6 6 2 23 12 8 7 24 26 17 12 27 13 18 15 22 7 8 19 13 14 19 Robot Miss Streak 5 | 1 3 3 5 2 2 1 . 2 4 2 1 4 3 3 1 3 1 1 3 1 1 1 3 1 2 2 2 4 3 4 Penetration Max 1 | . . . . . . . . . . . . . . . . . . . . . . . . . . . . . . 1 Secondary Targets . | . . . . . . . . . . . . . . . . . . . . . . . . . . . . . . . Shots Hit Robots 1358 | 10 22 112 69 67 22 3 . 20 20 13 3 111 59 11 23 63 12 7 110 36 27 37 112 31 19 38 118 38 69 76 Core Hits 857 | 5 13 34 43 47 14 15 . 19 18 28 6 60 114 4 12 32 5 1 45 21 11 20 64 14 8 24 60 14 31 75 Critical Kills 9 | . . . . . . . . . 1 . . 2 . . . . . . . . . . . . . . . . 4 2 Critical Parts Destroyed 5 | . . . . . . . . . . . . . . . . . . . . . . . . . . . . . . 5 Critical Strikes 26 | . . 3 3 . . . . . 1 . . 2 . . . . . . . . . . . . . . . . 4 13 Meltdown 7 | . . . . . . . . . 1 . . 2 . . . . . . . . . . . . . . . . 4 . Destroy 13 | . . . . . . . . . . . . . . . . . . . . . . . . . . . . . . 13 Blast 5 | . . 3 2 . . . . . . . . . . . . . . . . . . . . . . . . . . . Corrupt 1 | . . . 1 . . . . . . . . . . . . . . . . . . . . . . . . . . . Melee Attacks 57 | . 5 24 . 16 . 1 . . . . . 2 4 . . . . . . . . . . . . 5 . . . . Kinetic 5 | . . . . . . . . . . . . . . . . . . . . . . . . . . 5 . . . . Impact 29 | . 5 24 . . . . . . . . . . . . . . . . . . . . . . . . . . . . Slashing 23 | . . . . 16 . 1 . . . . . 2 4 . . . . . . . . . . . . . . . . . Piercing . | . . . . . . . . . . . . . . . . . . . . . . . . . . . . . . . Sneak Attacks 7 | . . . . 5 . 1 . . . . . 1 . . . . . . . . . . . . . . . . . . Combat Hostiles . | . . . . . . . . . . . . . . . . . . . . . . . . . . . . . . . Follow-up Attacks . | . . . . . . . . . . . . . . . . . . . . . . . . . . . . . . . Damage Inflicted 72080 | 112 821 2186 2045 2757 998 548 . 1074 1638 1700 241 4202 6030 519 1037 2987 588 334 5082 1809 1158 1858 6463 1464 999 2244 6292 1774 4555 8565 Guns 690 | 112 . 333 174 43 . 28 . . . . . . . . . . . . . . . . . . . . . . . . Cannons 55296 | . 428 1853 1323 1243 631 . . 403 593 337 . 3029 1788 519 1037 2977 588 334 5082 1809 1158 1684 5337 1464 999 1838 5467 1774 4457 7144 Explosions 15079 | . 393 . 548 933 367 451 . 671 1045 1363 241 1101 4184 . . . . . . . . 174 1126 . . 236 825 . . 1421 Melee 907 | . . . . 538 . 69 . . . . . 72 58 . . . . . . . . . . . . 170 . . . . Ramming 108 | . . . . . . . . . . . . . . . . 10 . . . . . . . . . . . . 98 . Kinetic 5381 | 36 428 2186 883 797 315 361 . 205 . . . . . . . . . . . . . . . . . 170 . . . . Thermal 52644 | 76 . . 400 1024 201 . . 45 1276 431 16 2932 1149 519 1037 2977 588 334 5082 1809 1158 1684 6107 1464 999 1838 5489 1774 4457 7778 Explosive 5854 | . 393 . 305 . . . . . 291 536 . 645 3557 . . . . . . . . . . . . . 44 . . 83 Electromagnetic 7356 | . . . 457 398 482 118 . 824 71 733 225 553 1266 . . . . . . . . 174 356 . . 236 759 . . 704 Impact . | . . . . . . . . . . . . . . . . . . . . . . . . . . . . . . . Slashing 737 | . . . . 538 . 69 . . . . . 72 58 . . . . . . . . . . . . . . . . . Piercing . | . . . . . . . . . . . . . . . . . . . . . . . . . . . . . . . Highest Corruption 25 | . . . 1 3 4 4 4 25 2 3 9 19 6 10 . . . . 4 . . . 2 2 . 10 10 . . . Average Corruption 4 | . . . 1 2 3 4 4 9 1 2 7 2 4 6 . . . . 2 . . . 1 1 . 4 3 . . . Corruption Purged 5 | . . . . 3 . . . . . . . . . . . . . . . . . . . 2 . . . . . . Corruption Blocked . | . . . . . . . . . . . . . . . . . . . . . . . . . . . . . . . Effects 377 | . . . 14 19 41 28 3 49 . 24 29 25 64 18 . . . . 12 . . . . 1 . 21 29 . . . Message Errors 87 | . . . 5 4 8 9 2 10 . 2 4 6 13 6 . . . . 3 . . . . 1 . 7 7 . . . Matter Fused 90 | . . . 3 5 9 7 1 9 . 9 9 3 19 3 . . . . 2 . . . . . . 6 5 . . . Heat Flow Errors 51 | . . . 2 4 6 6 . 8 . 3 3 3 8 1 . . . . 2 . . . . . . 1 4 . . . Energy Discharges 42 | . . . 1 . 6 2 . 9 . 3 7 2 5 1 . . . . . . . . . . . 1 5 . . . Parts Rejected 2 | . . . 1 . . . . 1 . . . . . . . . . . . . . . . . . . . . . . Parts Fused 1 | . . . . . . . . . . . . . 1 . . . . . . . . . . . . . . . . . Data Loss (minor) 42 | . . . 1 2 7 . . 7 . 2 2 5 8 2 . . . . 2 . . . . . . 3 1 . . . Data Loss (major) 23 | . . . 1 2 1 2 . 2 . 2 2 1 3 3 . . . . 1 . . . . . . 1 2 . . . Misfires 18 | . . . . . 3 1 . 1 . 2 1 . 5 1 . . . . . . . . . . . 1 3 . . . Alerts 12 | . . . . 2 1 1 . . . 1 1 2 2 1 . . . . . . . . . . . . 1 . . . Misdirections 1 | . . . . . . . . . . . . . . . . . . . . . . . . . . 1 . . . . Weapon Failures 8 | . . . . . . . . 2 . . . 3 . . . . . . 2 . . . . . . . 1 . . . Overload Shots . | . . . . . . . . . . . . . . . . . . . . . . . . . . . . . . . Overflow Damage 3147 | . 28 4 10 182 36 83 . 16 103 10 . 96 393 48 29 5 6 5 98 17 25 27 284 . 32 112 354 15 269 860 Projectiles 2261 | . . 4 . 17 . . . 16 . . . 96 166 48 29 5 6 5 98 17 25 21 203 . 32 112 354 15 269 723 Explosions 711 | . 28 . 10 88 36 23 . . 103 10 . . 189 . . . . . . . . 6 81 . . . . . . 137 Melee 175 | . . . . 77 . 60 . . . . . . 38 . . . . . . . . . . . . . . . . . Knockbacks 34 | . 1 24 8 . . . . . . . . . . . . . . . . . . . . . . . . . 1 . Impact 1 | . . . . . . . . . . . . . . . . . . . . . . . . . . . . . 1 . Kinetic 32 | . 1 24 7 . . . . . . . . . . . . . . . . . . . . . . . . . . . Secondary 1 | . . . 1 . . . . . . . . . . . . . . . . . . . . . . . . . . . Self-Inflicted Damage 480 | . . . 19 . . 70 . 26 . 67 13 . 57 . . . . . . . . 35 . . . 23 102 . . 68 Shots 18 | . . . 1 . . 2 . 2 . 6 1 . 1 . . . . . . . . 2 . . . 1 1 . . 1 Rammed . | . . . . . . . . . . . . . . . . . . . . . . . . . . . . . . . Targets Rammed 4 | . . . . . . . . . . . . . . . . 1 . . . . . . . . . . . . 3 . Kicked 4 | . . . . . . . . . . . . . . . . 1 . . . . . . . . . . . . 3 . Crushed . | . . . . . . . . . . . . . . . . . . . . . . . . . . . . . . . Highest Temperature 396 | 40 51 . 196 393 211 220 . 255 10 205 260 360 306 95 . . . . 266 . 10 . 7 . . 140 181 . 8 396 Average Temperature 64 | 19 12 . 53 74 56 82 . 99 7 68 97 63 66 48 . . . . 70 . 9 . 5 . . 58 76 . 6 122 Received Heat Transfer 3437 | . 78 132 442 218 12 . . 126 59 557 . 249 530 45 27 132 12 . 261 32 91 36 85 28 51 48 148 . 20 18 Effects 9 | . . . . 2 . . . . . . . 6 1 . . . . . . . . . . . . . . . . . Shutdowns 1 | . . . . 1 . . . . . . . . . . . . . . . . . . . . . . . . . . Energy Bleed 4 | . . . . 1 . . . . . . . 2 1 . . . . . . . . . . . . . . . . . Interference 4 | . . . . . . . . . . . . 4 . . . . . . . . . . . . . . . . . . Siege Activations . | . . . . . . . . . . . . . . . . . . . . . . . . . . . . . . . Martial Activations . | . . . . . . . . . . . . . . . . . . . . . . . . . . . . . . . Shielding Activations . | . . . . . . . . . . . . . . . . . . . . . . . . . . . . . . . Robots Disrupted . | . . . . . . . . . . . . . . . . . . . . . . . . . . . . . . . Combat Hostiles . | . . . . . . . . . . . . . . . . . . . . . . . . . . . . . . . Robots Corrupted 23 | . . . 1 1 1 . . 4 . 3 . 4 7 . . . . . . . . . . . . . 2 . . . Combat Hostiles 23 | . . . 1 1 1 . . 4 . 3 . 4 7 . . . . . . . . . . . . . 2 . . . Parts Fried 48 | . . . 3 4 1 . . 6 . 4 1 4 12 . . 1 . . . . . 1 . . . . 7 . . 4 Impact Corruptions . | . . . . . . . . . . . . . . . . . . . . . . . . . . . . . . . Robots Melted 9 | . . . . . . . . . 1 . . 2 . . . . . . . . . . 1 . . . 1 . 4 . Combat Hostiles 7 | . . . . . . . . . 1 . . . . . . . . . . . . . 1 . . . 1 . 4 . Parts Melted 45 | . . . 1 2 1 . . . 4 1 . 8 . . 1 2 . . 3 . . 1 10 . 1 . 4 . 2 4 Heat Transferred 32717 | 175 . . 605 1523 300 . . 50 1387 750 50 4711 700 275 600 1587 325 200 2825 950 650 900 3307 825 525 850 2962 975 2475 2235 Parts Sabotaged . | . . . . . . . . . . . . . . . . . . . . . . . . . . . . . . . Parts Stolen . | . . . . . . . . . . . . . . . . . . . . . . . . . . . . . . . Parts Stripped 12 | . . . . . . . . . . . . . . . . . . . . . . . . . . 12 . . . . Power Chain Reactions 21 | . . . 1 1 1 . . 1 . 1 1 4 3 . . . . . . . . . 3 . . . 1 . . 4 Alert | -11 -10 -10 -8 -7 -7 -7 -7 -6 -6 -6 -6 -6 -6 -5 -5 -5 -5 -5 -5 -4 -4 -4 -4 -3 -3 -3 -3 -2 -2 -1 ------- Run | Yrd Mat Sub Mat Fac Low Low Dat Pro Fac Low Low Zio Dee Pro Fac Ext Cet Arc Hub Fac Upp Upp War Pro Res Qua Sec Res Tes Acc Maximum Alert Level 4 | . . . 1 1 . . . . 1 . . . . . . 1 1 2 2 1 . . . . . 1 2 1 1 4 Low Security (%) 71 | 100 100 . 92 63 . . . . 51 . . . . . 100 68 93 66 33 43 . . . . 100 81 21 66 66 63 Level 1 18 | . . . 7 36 . . . . 48 . . . . . . 31 6 8 27 56 . . . . . 18 10 33 33 14 Level 2 9 | . . . . . . . . . . . . . . . . . . 24 39 . . . . . . . 68 . . 13 Level 3 . | . . . . . . . . . . . . . . . . . . . . . . . . . . . . . . . Level 4 . | . . . . . . . . . . . . . . . . . . . . . . . . . . . . . . 7 Level 5 . | . . . . . . . . . . . . . . . . . . . . . . . . . . . . . . . High Security . | . . . . . . . . . . . . . . . . . . . . . . . . . . . . . . . Max Security . | . . . . . . . . . . . . . . . . . . . . . . . . . . . . . . . Peak Influence 1429 | 10 155 . 220 297 . . . . 335 . . . . . 128 377 322 490 464 291 . . . . 48 240 692 387 325 1429 Initial 387 | . . . 36 65 . . . . 96 . . . . . . . 104 124 133 197 . . . . 46 4 103 387 86 179 Average 149 | . 20 . 110 110 . . . . 146 . . . . . 37 135 63 213 285 214 . . . . 8 82 416 181 187 311 Influence Increases 13245 | 20 310 135 702 706 210 250 . 280 551 160 50 . . 60 230 914 742 426 901 430 125 305 640 245 224 594 1239 237 707 1852 Destroy 0b10 Robot/C 7740 | . 120 80 400 400 160 220 . 220 280 140 40 . . 60 140 500 320 200 560 220 100 260 620 140 100 280 700 160 400 920 Destroy 0b10 Robot/NC 325 | 20 35 . 40 60 . . . . 5 . . . . . 5 20 10 . 20 5 . . 5 . 5 15 10 . 20 50 Destroy Leader 1264 | . 38 10 106 90 50 30 . 30 70 20 10 . . . 32 36 20 . 136 60 10 30 . . 20 60 164 50 60 132 Allied During Kill 852 | . . . . . . . . . . . . . . . . 307 345 200 . . . . . . . . . . . . Successful Hack 219 | . 5 . 13 26 . . . . . . . . . . . . . . 5 46 . . . . 12 22 28 . 11 51 Select Force Hacks 30 | . 30 . . . . . . . . . . . . . . . . . . . . . . . . . . . . . Disable Machine 930 | . 60 . 30 105 . . . . 150 . . . . . . 15 15 . 45 30 . . . . 45 135 135 . 90 75 Destroy Structure 1075 | . 22 . 53 25 . . . . 46 . . . . . 38 36 32 26 90 24 . . . . 42 52 172 27 126 264 Partial Spotted 15 | . . . . . . . . . . . . . . . . . . . . . . . . . . 15 . . . . Lose Combat Pursuer 795 | . . 45 60 . . . . 30 . . . . . . 15 . . . 45 45 15 15 15 105 . 15 30 . . 360 Influence Decreases 11816 | 20 281 94 626 561 501 180 70 126 386 479 50 . . 60 230 728 618 356 877 551 371 342 160 656 284 418 734 773 562 722 Entered New Map 2402 | . . 15 34 81 109 . 70 . 58 119 . . . . . . 82 186 247 207 105 8 . 480 23 5 82 303 68 120 Time Decay 8262 | 20 281 49 502 470 372 180 . 126 308 300 40 . . 60 230 498 274 50 470 334 266 334 140 176 261 403 632 470 474 542 Lost Part 380 | . . 30 90 10 20 . . . 20 60 10 . . . . . . . 10 . . . 20 . . 10 20 . 20 60 Lost Ally 472 | . . . . . . . . . . . . . . . . 80 262 120 . 10 . . . . . . . . . . Purge Threat 300 | . . . . . . . . . . . . . . . . 150 . . 150 . . . . . . . . . . . Squads Dispatched 73 | . 1 . 3 9 . . . . 1 . . . . . 3 . . . 11 2 . . . 1 10 5 12 1 8 6 Investigation 9 | . 1 . . . . . . . . . . . . . . . . . . . . . . . 6 . . . 1 1 Extermination 24 | . . . . 3 . . . . 1 . . . . . 1 . . . 2 2 . . . . . 4 4 . 3 4 Reinforcement 31 | . . . 3 2 . . . . . . . . . . 2 . . . 7 . . . . . 4 1 6 1 4 1 Assault 3 | . . . . . . . . . . . . . . . . . . . . . . . . 1 . . 2 . . . Garrison 6 | . . . . 4 . . . . . . . . . . . . . . 2 . . . . . . . . . . . Intercept . | . . . . . . . . . . . . . . . . . . . . . . . . . . . . . . . Searches Triggered . | . . . . . . . . . . . . . . . . . . . . . . . . . . . . . . . Unchained Authorized 2 | . . . . . . . . . . . . . . . . . . . . . . . . . . . . . 1 1 Data Miner Redirects 1 | . . . . . . . . . . . . . . . . . . . . . . . . . . . 1 . . . Construction Impeded 3 | . . . . 2 . . . . . . . . . . . . . . 1 . . . . . . . . . . . Haulers Reinforced 5 | . . . . . . . . . . . . . . . 1 . . . 2 . . . . . 1 . 1 . . . Active Scanning Responses . | . . . . . . . . . . . . . . . . . . . . . . . . . . . . . . . Cargo Convoy Interrupts 1 | . . . . . . . . . . . . . . . 1 . . . . . . . . . . . . . . . Stealth | -11 -10 -10 -8 -7 -7 -7 -7 -6 -6 -6 -6 -6 -6 -5 -5 -5 -5 -5 -5 -4 -4 -4 -4 -3 -3 -3 -3 -2 -2 -1 --------- Run | Yrd Mat Sub Mat Fac Low Low Dat Pro Fac Low Low Zio Dee Pro Fac Ext Cet Arc Hub Fac Upp Upp War Pro Res Qua Sec Res Tes Acc Distress Signals 40 | . . . 4 3 . . . . 1 . . . . . . 1 2 . 2 1 . . 1 . 5 3 3 7 3 4 Communications Jammed 120 | . . . . . . . . . 7 . . . . . 2 2 . . 16 19 . . . . . 32 9 . 12 21 Distress Signals 118 | . . . . . . . . . 7 . . . . . . 2 . . 16 19 . . . . . 32 9 . 12 21 Times Spotted 736 | . 14 17 31 27 8 9 . 11 19 13 2 44 61 3 8 25 19 5 42 16 6 14 93 8 21 26 69 13 31 81 Peak Tracking Total 39 | . 4 2 6 5 3 4 . 4 5 5 2 8 39 2 2 5 8 5 5 4 3 5 16 7 6 5 8 5 4 21 Tactical Retreats 45 | . . 2 4 . . . . 1 . . . 2 7 . 1 . . . 2 2 1 1 1 3 3 3 7 . . 5 ECM-based Alert Blocks 36 | . . . . . . . . . . . . . . . . . . . . . . . . . 12 4 20 . . . Traps | -11 -10 -10 -8 -7 -7 -7 -7 -6 -6 -6 -6 -6 -6 -5 -5 -5 -5 -5 -5 -4 -4 -4 -4 -3 -3 -3 -3 -2 -2 -1 ------- Run | Yrd Mat Sub Mat Fac Low Low Dat Pro Fac Low Low Zio Dee Pro Fac Ext Cet Arc Hub Fac Upp Upp War Pro Res Qua Sec Res Tes Acc Traps Triggered 19 | . . 2 1 . . . . . 3 . . . . . . 7 . . . 1 . . . . 2 2 1 . . . Indirectly 5 | . . . . . . . . . 3 . . . . . . . . . . . . . . . . 2 . . . . Trap Hack Attempts . | . . . . . . . . . . . . . . . . . . . . . . . . . . . . . . . Triggered . | . . . . . . . . . . . . . . . . . . . . . . . . . . . . . . . Disarmed . | . . . . . . . . . . . . . . . . . . . . . . . . . . . . . . . Reprogrammed . | . . . . . . . . . . . . . . . . . . . . . . . . . . . . . . . Reused . | . . . . . . . . . . . . . . . . . . . . . . . . . . . . . . . Traps Extracted . | . . . . . . . . . . . . . . . . . . . . . . . . . . . . . . . Installed . | . . . . . . . . . . . . . . . . . . . . . . . . . . . . . . . Triggered . | . . . . . . . . . . . . . . . . . . . . . . . . . . . . . . . Machines | -11 -10 -10 -8 -7 -7 -7 -7 -6 -6 -6 -6 -6 -6 -5 -5 -5 -5 -5 -5 -4 -4 -4 -4 -3 -3 -3 -3 -2 -2 -1 ---------- Run | Yrd Mat Sub Mat Fac Low Low Dat Pro Fac Low Low Zio Dee Pro Fac Ext Cet Arc Hub Fac Upp Upp War Pro Res Qua Sec Res Tes Acc Machines Disabled 74 | . 4 1 2 7 . . . . 10 . . 4 1 . . 1 1 . 3 2 . . 3 . 4 9 10 . 7 5 Max in Single Turn 9 | . 2 1 1 3 . . . . 9 . . 2 1 . . . 1 . 1 1 . . 1 . 2 1 1 . 1 3 Garrison Access 4 | . . . . . . . . . . . . . . . . . . . 1 . . . . . 1 . 1 1 . . Network Hub 1 | . . . . . . . . . . . . . . . . . . . 1 . . . . . . . . . . . Machines Repaired . | . . . . . . . . . . . . . . . . . . . . . . . . . . . . . . . Machines Dismantled 1 | . . . . . . . . . . . . . . . . . 1 . . . . . . . . . . . . . Machines Sabotaged . | . . . . . . . . . . . . . . . . . . . . . . . . . . . . . . . Overloaded Fab Kills . | . . . . . . . . . . . . . . . . . . . . . . . . . . . . . . . Hacking | -11 -10 -10 -8 -7 -7 -7 -7 -6 -6 -6 -6 -6 -6 -5 -5 -5 -5 -5 -5 -4 -4 -4 -4 -3 -3 -3 -3 -2 -2 -1 --------- Run | Yrd Mat Sub Mat Fac Low Low Dat Pro Fac Low Low Zio Dee Pro Fac Ext Cet Arc Hub Fac Upp Upp War Pro Res Qua Sec Res Tes Acc Machines Accessed 73 | . 7 2 5 6 1 1 4 1 1 . . . . . 1 3 1 1 3 6 . . 7 . 5 4 7 . 3 4 Terminals 39 | . 6 . 3 5 1 . . 1 1 . . . . . . 3 1 . 2 4 . . . . 1 2 5 . 1 3 Fabricators 3 | . . . . . . . . . . . . . . . . . . . . 1 . . . . . . . . 1 1 Repair Stations 7 | . . . 2 . . . . . . . . . . . . . . . . . . . . . 2 1 1 . 1 . Recycling Units 1 | . 1 . . . . . . . . . . . . . . . . . . . . . . . . . . . . . Scanalyzers 4 | . . . . 1 . . . . . . . . . . . . . . . 1 . . . . 1 1 . . . . Garrison Access 4 | . . . . . . . . . . . . . . . 1 . . . 1 . . . . . 1 . 1 . . . Total Hacks 202 | . 11 4 15 8 2 1 25 1 1 . . . . . 2 7 5 25 7 19 . . 8 . 14 8 19 . 14 6 Successful 118 | . 5 4 9 4 2 1 25 1 . . . . . . . 1 . 25 3 6 . . 8 . 3 4 9 . 5 3 Failed 84 | . 6 . 6 4 . . . . 1 . . . . . 2 6 5 . 4 13 . . . . 11 4 10 . 9 3 Catastrophic 18 | . . . . 1 . . . . . . . . . . 1 3 1 . 2 3 . . . . 2 . 1 . 1 3 Database Lockouts . | . . . . . . . . . . . . . . . . . . . . . . . . . . . . . . . Manual 40 | . 10 . 5 3 . . . . 1 . . . . . . . 1 . 6 8 . . 1 . 2 1 1 . . 1 Terminals 89 | . 10 . 6 7 2 . . 1 1 . . . . . . 7 5 . 6 17 . . . . 2 4 13 . 4 4 Fabricators 4 | . . . . . . . . . . . . . . . . . . . . 1 . . . . . . . . 1 2 Repair Stations 30 | . . . 9 . . . . . . . . . . . . . . . . . . . . . 8 2 2 . 9 . Recycling Units 1 | . 1 . . . . . . . . . . . . . . . . . . . . . . . . . . . . . Scanalyzers 6 | . . . . 1 . . . . . . . . . . . . . . . 1 . . . . 2 2 . . . . Garrison Access 9 | . . . . . . . . . . . . . . . 2 . . . 1 . . . . . 2 . 4 . . . Terminal Hacks 89 | . 3 4 3 4 2 1 25 1 . . . . . . . 1 . 25 1 4 . . 8 . . 2 5 . . . Record 50 | . . 3 . . 2 . 11 1 . . . . . . . . . 25 . . . . 7 . . . 1 . . . Part Schematic 11 | . 1 . 1 1 . . 8 . . . . . . . . . . . . . . . . . . . . . . . Robot Schematic 3 | . . . . . . . 3 . . . . . . . . . . . . . . . . . . . . . . . Robot Analysis 3 | . 2 . 1 . . . . . . . . . . . . . . . . . . . . . . . . . . . Prototype ID Bank 3 | . . . . . . . 3 . . . . . . . . . . . . . . . . . . . . . . . Open Door 4 | . . . . . . 1 . . . . . . . . . . . . . . . . 1 . . . 2 . . . Branch Access Points 2 | . . . . 1 . . . . . . . . . . . . . . . 1 . . . . . . . . . . Emergency Access Points 2 | . . . . . . . . . . . . . . . . . . . . . . . . . . 1 1 . . . Alert Level 1 | . . . . . . . . . . . . . . . . . . . . . . . . . . . 1 . . . Unreport Threat 2 | . . . . . . . . . . . . . . . . 1 . . 1 . . . . . . . . . . . Locate Traps 3 | . . . 1 . . . . . . . . . . . . . . . . 1 . . . . . 1 . . . . Recall Extermination 1 | . . . . 1 . . . . . . . . . . . . . . . . . . . . . . . . . . Registered Components 2 | . . . . 1 . . . . . . . . . . . . . . . 1 . . . . . . . . . . Zone Layout 1 | . . . . . . . . . . . . . . . . . . . . 1 . . . . . . . . . . Proto ID Catalog 1 | . . 1 . . . . . . . . . . . . . . . . . . . . . . . . . . . . Fabricator Hacks 2 | . . . . . . . . . . . . . . . . . . . . . . . . . . . . . . 2 Load Schematic 1 | . . . . . . . . . . . . . . . . . . . . . . . . . . . . . . 1 Build 1 | . . . . . . . . . . . . . . . . . . . . . . . . . . . . . . 1 Repair Station Hacks 14 | . . . 5 . . . . . . . . . . . . . . . . . . . . . 2 . 2 . 5 . Scan Component 9 | . . . 3 . . . . . . . . . . . . . . . . . . . . . 2 . 1 . 3 . Repair 5 | . . . 2 . . . . . . . . . . . . . . . . . . . . . . . 1 . 2 . Recycling Unit Hacks . | . . . . . . . . . . . . . . . . . . . . . . . . . . . . . . . Scanalyzer 1 | . . . . . . . . . . . . . . . . . . . . . . . . . . 1 . . . . Insert Component 1 | . . . . . . . . . . . . . . . . . . . . . . . . . . 1 . . . . Garrison Access Hacks 3 | . . . . . . . . . . . . . . . . . . . 1 . . . . . 1 . 1 . . . Seal Access 3 | . . . . . . . . . . . . . . . . . . . 1 . . . . . 1 . 1 . . . Unauthorized Hacks 9 | . 2 . 1 . . . . . . . . . . . . . . . 1 2 . . . . . 1 1 . . 1 Terminals 7 | . 1 . 1 . . . . . . . . . . . . . . . 1 2 . . . . . . 1 . . 1 Assimilate 1 | . . . . . . . . . . . . . . . . . . . . 1 . . . . . . . . . . Botnet 6 | . 1 . 1 . . . . . . . . . . . . . . . 1 1 . . . . . . 1 . . 1 Fabricators . | . . . . . . . . . . . . . . . . . . . . . . . . . . . . . . . Repair Stations . | . . . . . . . . . . . . . . . . . . . . . . . . . . . . . . . Recycling Units 1 | . 1 . . . . . . . . . . . . . . . . . . . . . . . . . . . . . Tunnel 1 | . 1 . . . . . . . . . . . . . . . . . . . . . . . . . . . . . Scanalyzers 1 | . . . . . . . . . . . . . . . . . . . . . . . . . . 1 . . . . Researchers 1 | . . . . . . . . . . . . . . . . . . . . . . . . . . 1 . . . . Garrison Access . | . . . . . . . . . . . . . . . . . . . . . . . . . . . . . . . Data Cores Recovered 1 | . . . . . . . . . . . . . . . . . . . . 1 . . . . . . . . . . Used . | . . . . . . . . . . . . . . . . . . . . . . . . . . . . . . . Hacking Detections 44 | . 4 . 5 3 1 . . 1 1 . . . . . 1 3 2 . 2 6 . . . . 4 2 3 . 2 4 Full Trace Events 4 | . . . . . . . . . . . . . . . . . . . . . . . . . 2 . . . 1 1 Feedback Events . | . . . . . . . . . . . . . . . . . . . . . . . . . . . . . . . Feedback Blocked . | . . . . . . . . . . . . . . . . . . . . . . . . . . . . . . . Robot Schematics Acquired 7 | . . . . . . . 3 . . . . 3 . . . . . . . . . . . . . . . . 1 . Robots Built . | . . . . . . . . . . . . . . . . . . . . . . . . . . . . . . . Authchips . | . . . . . . . . . . . . . . . . . . . . . . . . . . . . . . . Time . | . . . . . . . . . . . . . . . . . . . . . . . . . . . . . . . Total Robot Build Rating . | . . . . . . . . . . . . . . . . . . . . . . . . . . . . . . . Part Schematics Acquired 29 | . 1 . 1 1 . . 8 . . . . 16 . . . . . . . . . . . . . . . . 2 . Parts Built 1 | . . . . . . . . . . . . . . . . . . . . . . . . . . . . . . 1 Authchips . | . . . . . . . . . . . . . . . . . . . . . . . . . . . . . . . Time 74 | . . . . . . . . . . . . . . . . . . . . . . . . . . . . . . 74 Total Part Build Rating 9 | . . . . . . . . . . . . . . . . . . . . . . . . . . . . . . 9 Part Studies Acquired . | . . . . . . . . . . . . . . . . . . . . . . . . . . . . . . . Parts Repaired 5 | . . . 2 . . . . . . . . . . . . . . . . . . . . . . . 1 . 2 . Time 318 | . . . 76 . . . . . . . . . . . . . . . . . . . . . . . 68 . 174 . Parts Recycled . | . . . . . . . . . . . . . . . . . . . . . . . . . . . . . . . Recycled Matter . | . . . . . . . . . . . . . . . . . . . . . . . . . . . . . . . Retrieved Matter . | . . . . . . . . . . . . . . . . . . . . . . . . . . . . . . . Retrieved Components . | . . . . . . . . . . . . . . . . . . . . . . . . . . . . . . . Parts Scanalyzed . | . . . . . . . . . . . . . . . . . . . . . . . . . . . . . . . Part Schematics Acquired . | . . . . . . . . . . . . . . . . . . . . . . . . . . . . . . . Parts Damaged . | . . . . . . . . . . . . . . . . . . . . . . . . . . . . . . . Bothacking | -11 -10 -10 -8 -7 -7 -7 -7 -6 -6 -6 -6 -6 -6 -5 -5 -5 -5 -5 -5 -4 -4 -4 -4 -3 -3 -3 -3 -2 -2 -1 ------------ Run | Yrd Mat Sub Mat Fac Low Low Dat Pro Fac Low Low Zio Dee Pro Fac Ext Cet Arc Hub Fac Upp Upp War Pro Res Qua Sec Res Tes Acc Used RIF Installer . | . . . . . . . . . . . . . . . . . . . . . . . . . . . . . . . Robots Hacked 2 | . . . . . . . . . . . . . . . . 2 . . . . . . . . . . . . . . Non-combat . | . . . . . . . . . . . . . . . . . . . . . . . . . . . . . . . Combat 2 | . . . . . . . . . . . . . . . . 2 . . . . . . . . . . . . . . Robot Hacks Applied 2 | . . . . . . . . . . . . . . . . 2 . . . . . . . . . . . . . . parse_system 2 | . . . . . . . . . . . . . . . . 2 . . . . . . . . . . . . . . Relay Couplers Released 2 | . . . . . . . . . . . . . . . . . . . . . . . . . . . . 2 . . Machine Destruction 2 | . . . . . . . . . . . . . . . . . . . . . . . . . . . . 2 . . Fabnet Peak Effective % . | . . . . . . . . . . . . . . . . . . . . . . . . . . . . . . . Robots Rewired 20 | . . . . . . . . . . . . . . . . 20 . . . . . . . . . . . . . . Allies Hacked . | . . . . . . . . . . . . . . . . . . . . . . . . . . . . . . . Hacks Repelled . | . . . . . . . . . . . . . . . . . . . . . . . . . . . . . . . Allies | -11 -10 -10 -8 -7 -7 -7 -7 -6 -6 -6 -6 -6 -6 -5 -5 -5 -5 -5 -5 -4 -4 -4 -4 -3 -3 -3 -3 -2 -2 -1 -------- Run | Yrd Mat Sub Mat Fac Low Low Dat Pro Fac Low Low Zio Dee Pro Fac Ext Cet Arc Hub Fac Upp Upp War Pro Res Qua Sec Res Tes Acc Total Allies 35 | . . . . . . . . . . . . . . . . 29 5 . . 1 . . . . . . . . . . Largest Group 24 | . . . . . . . . . . . . . . . . 24 23 10 . 1 . . . . . . . . . . Highest-Rated Group 813 | . . . . . . . . . . . . . . . . 770 813 608 . 10 . . . . . . . . . . Highest-Rated Ally 159 | . . . . . . . . . . . . . . . . 159 159 96 . 10 . . . . . . . . . . Total Orders 10 | . . . . . . . . . . . . . . . . . 8 2 . . . . . . . . . . . . ROAM 3 | . . . . . . . . . . . . . . . . . 2 1 . . . . . . . . . . . . FOLLOW 7 | . . . . . . . . . . . . . . . . . 6 1 . . . . . . . . . . . . Ally Attacks 267 | . . . . . . . . . . . . . . . . 85 121 61 . . . . . . . . . . . . Total Damage 7816 | . . . . . . . . . . . . . . . . 2083 3435 2298 . . . . . . . . . . . . Kills 43 | . . . . . . . . . . . . . . . . 15 17 11 . . . . . . . . . . . . Allies Corrupted 1 | . . . . . . . . . . . . . . . . 1 . . . . . . . . . . . . . . Allies Melted . | . . . . . . . . . . . . . . . . . . . . . . . . . . . . . . . Intel | -11 -10 -10 -8 -7 -7 -7 -7 -6 -6 -6 -6 -6 -6 -5 -5 -5 -5 -5 -5 -4 -4 -4 -4 -3 -3 -3 -3 -2 -2 -1 ------- Run | Yrd Mat Sub Mat Fac Low Low Dat Pro Fac Low Low Zio Dee Pro Fac Ext Cet Arc Hub Fac Upp Upp War Pro Res Qua Sec Res Tes Acc Active Infowar (turns) 49563 | . 2951 7365 1523 1022 2056 1330 162 1498 769 1686 1195 5849 910 704 1057 2060 836 115 1185 756 1143 1551 1203 1356 1753 1667 2213 1184 1201 1263 Optics 20307 | . . . . . . . . . . . . . 691 704 1057 2060 836 115 1185 756 1143 1551 1203 1356 1753 1667 2213 1184 833 . Sensors 26262 | . . . 1108 895 2056 1330 162 1415 357 1669 1195 5365 199 . . . . . . 395 1020 1239 . 886 1540 785 1435 1085 1011 1115 Terrain 4367 | . . . . . . . . . . . . . 1 . . . . . . . 1 . 738 . 1545 841 396 . . 845 Traps 2 | . . . . . . . . . . . . . . . . . . . . . . . . . . . . 2 . . Seismic 12499 | . 2951 7365 415 618 . . . 578 554 17 . . . . . . . . . . . . . . . . . 1 . . Cloaking 3829 | . . . . . . . . . . . . . . . . . . . . . . . 243 . 160 60 833 812 909 812 Jamming 16908 | . . . . . . . . 283 769 763 1192 4112 19 . 756 1806 836 78 760 213 . 787 339 . . 1098 1262 . 1078 757 ECM 534 | . . . . . . . . . . . . . . . . . . . . . . . . . 136 78 264 56 . . Robot Analysis Total 3 | . 2 . 1 . . . . . . . . . . . . . . . . . . . . . . . . . . . Derelict Logs Recovered 11 | . . 1 . . 2 . . 1 . 1 1 2 . . . . . . . . 2 1 . . . . . . . . Drone Launches . | . . . . . . . . . . . . . . . . . . . . . . . . . . . . . . . Drone Recoveries . | . . . . . . . . . . . . . . . . . . . . . . . . . . . . . . . Exploration | -11 -10 -10 -8 -7 -7 -7 -7 -6 -6 -6 -6 -6 -6 -5 -5 -5 -5 -5 -5 -4 -4 -4 -4 -3 -3 -3 -3 -2 -2 -1 ------------- Run | Yrd Mat Sub Mat Fac Low Low Dat Pro Fac Low Low Zio Dee Pro Fac Ext Cet Arc Hub Fac Upp Upp War Pro Res Qua Sec Res Tes Acc Turns Passed 54793 | 178 2970 8350 1703 2074 2188 1387 162 1592 769 1810 1195 5861 3022 704 1057 2060 836 115 1185 756 1143 1551 1203 1356 1753 1667 2213 1184 1201 1548 Spaces Moved 22238 | 99 873 2071 582 1028 947 742 95 847 344 396 285 1648 1368 332 384 821 320 43 385 431 616 615 708 801 1101 825 1151 708 628 1044 Core 22 | 21 . . . . . . . . . . . . 1 . . . . . . . . . . . . . . . . . Treads 5084 | 78 873 1807 209 13 100 . . . . 388 285 1302 29 . . . . . . . . . . . . . . . . . Legs 11153 | . . . . . . . . . . . . . 523 332 384 821 320 43 385 431 616 615 708 801 1101 825 1021 708 628 891 Wheels 5696 | . . 264 373 1015 847 742 95 847 344 8 . 346 815 . . . . . . . . . . . . . . . . . Hover . | . . . . . . . . . . . . . . . . . . . . . . . . . . . . . . . Flight . | . . . . . . . . . . . . . . . . . . . . . . . . . . . . . . . Fastest Speed 50 | 50 160 150 131 150 170 170 170 170 185 185 405 165 120 180 189 189 189 189 189 126 128 128 120 112 120 124 132 132 132 110 Average Speed 203 | 149 315 370 219 166 219 170 170 170 187 431 410 305 181 180 189 193 199 189 189 139 146 130 124 118 125 126 132 142 132 112 Slowest Speed 850 | 200 320 480 340 340 430 170 170 185 290 435 435 730 850 180 195 260 260 189 189 202 197 203 175 120 175 132 185 187 186 155 Overloaded Moves . | . . . . . . . . . . . . . . . . . . . . . . . . . . . . . . . Propulsion Burnouts . | . . . . . . . . . . . . . . . . . . . . . . . . . . . . . . . Robots Hopped . | . . . . . . . . . . . . . . . . . . . . . . . . . . . . . . . Potential Cave-ins 11 | . . . . . . . . . . . . . . . . . . . . . . 2 1 . 2 . 6 . . . Cave-ins Triggered 2 | . . . . . . . . . . . . . . . . . . . . . . . 1 . . 1 . . . . Microwarps 24 | . . . . . . . . . . . . . . . . . . . . . . . . . . . 10 . . 14 Exploration Rate (%) 62 | 4 99 96 41 31 96 88 69 90 14 53 60 88 86 59 15 89 81 74 50 18 79 69 92 75 52 76 69 29 82 26 Regions Visited 30 Branch Regions 21 Pre-discovered Areas 5 | . 1 2 . . . . 1 . . . . . . . . . . . . . 1 . . . . . . . . . Known Exits Taken 20 | . . . . 1 1 1 1 1 1 1 1 1 . . 1 . . . . 1 1 1 1 1 1 1 1 1 1 . Unknown Exits Taken 10 | 1 1 1 1 . . . . . . . . . 1 1 . 1 1 1 1 . . . . . . . . . . . Scrap Searched 39 | . . 5 . . 9 4 . 5 . 3 1 4 . . . . . . . . 1 2 . 5 . . . . . . Spaces Dug 242 | . 3 . 7 . . 56 . . 5 18 . 7 . 4 11 . . . 13 5 . 6 4 11 13 14 28 9 15 13 Terrain Destroyed 1055 | . 25 . 56 30 31 71 . 17 53 54 4 127 90 11 19 7 1 . 45 11 9 15 24 27 23 23 117 18 41 106 Melee 3 | . 3 . . . . . . . . . . . . . . . . . . . . . . . . . . . . . Projectile 449 | . 2 . 20 . . . . . 11 4 1 22 9 11 19 7 1 . 45 11 9 15 16 27 23 23 60 18 41 54 AOE 603 | . 20 . 36 30 31 71 . 17 42 50 3 105 81 . . . . . . . . . 8 . . . 57 . . 52 Terrain Rammed . | . . . . . . . . . . . . . . . . . . . . . . . . . . . . . . . Walls Destroyed . | . . . . . . . . . . . . . . . . . . . . . . . . . . . . . . . Machines Disabled . | . . . . . . . . . . . . . . . . . . . . . . . . . . . . . . . Actions | -11 -10 -10 -8 -7 -7 -7 -7 -6 -6 -6 -6 -6 -6 -5 -5 -5 -5 -5 -5 -4 -4 -4 -4 -3 -3 -3 -3 -2 -2 -1 --------- Run | Yrd Mat Sub Mat Fac Low Low Dat Pro Fac Low Low Zio Dee Pro Fac Ext Cet Arc Hub Fac Upp Upp War Pro Res Qua Sec Res Tes Acc Total 29610 | 114 1036 2522 889 1274 1014 847 96 958 422 458 301 2146 1834 417 670 1224 502 69 668 535 819 1310 881 1145 1413 1354 1668 839 877 1308 Wait 4457 | . 101 290 168 69 16 70 . 37 21 8 . 230 227 72 236 112 144 23 158 32 167 624 46 273 207 353 393 51 104 225 Move 21948 | 98 872 2070 581 1027 946 741 94 846 343 395 284 1647 1367 331 383 820 319 42 384 430 615 614 706 800 1100 824 1030 707 628 904 Hop . | . . . . . . . . . . . . . . . . . . . . . . . . . . . . . . . Pick Up 271 | 3 16 12 20 23 2 1 . 6 6 6 . 12 44 . 5 4 3 . 2 8 2 5 6 18 11 11 14 . 11 20 Fast Attach 120 | 6 2 2 9 11 1 2 1 6 1 1 . 8 10 . 3 2 2 . . 2 . 1 2 . 5 6 8 11 6 12 Attach 87 | . 1 4 8 3 2 . . 3 5 8 3 4 19 . 2 1 1 . 1 3 . 1 . 1 1 4 6 1 4 1 Detach 191 | . 2 . 1 3 1 . . 2 2 1 . 5 21 2 5 7 7 . 8 9 2 9 7 8 7 16 25 10 11 20 Swap 524 | . 5 25 19 37 21 12 . 23 13 7 3 31 23 1 4 5 4 . 17 10 11 19 18 10 34 44 44 22 30 32 Drop 325 | . 6 5 14 31 4 5 1 11 4 . . 20 45 . 7 6 7 . 3 11 4 9 13 3 16 27 18 14 15 26 Fire 1385 | 7 26 90 69 51 21 15 . 24 27 32 11 187 72 11 25 39 7 4 95 30 18 28 81 32 32 64 130 23 66 68 Melee 57 | . 5 24 . 16 . 1 . . . . . 2 4 . . . . . . . . . . . . 5 . . . . Ram . | . . . . . . . . . . . . . . . . . . . . . . . . . . . . . . . Kick 3 | . . . . . . . . . . . . . . . . 1 . . . . . . . . . . . . 2 . Crush . | . . . . . . . . . . . . . . . . . . . . . . . . . . . . . . . Escape Stasis 31 | . . . . . . . . . . . . . . . . 30 . . . . . . 1 . . . . . . . Rewire 200 | . . . . . . . . . . . . . 2 . . 197 . . . . . . 1 . . . . . . . Trap . | . . . . . . . . . . . . . . . . . . . . . . . . . . . . . . . Miscellaneous 11 | . . . . 3 . . . . . . . . . . . . 8 . . . . . . . . . . . . . Route ------- -11/Scrapyard -10/Materials (discovered 6 exits: [*Mat x3] / [*Min x2] / *Sub) -10/Subcaves (discovered 2 exits: *Mat x2) -8/Materials -7/Factory (discovered 3 exits: *Sto / *Low x2) -7/Lower Caves -7/Lower Caves (discovered 2 exits: *Fac / *Dat) -7/Data Miner -6/Proximity Caves -6/Factory -6/Lower Caves -6/Lower Caves -6/Zion (discovered 2 exits: *Dee / [*Pro]) -6/Deep Caves -5/Proximity Caves -5/Factory (discovered 3 exits: Upp / *Ext x2) -5/Extension (discovered 2 exits: *Fac / *Cet) -5/Cetus (discovered 2 exits: *Fac / *Arc) -5/Archives (discovered 2 exits: *Hub x2) -5/Hub_04(d) -4/Factory (discovered 3 exits: *Res / *Upp x2) -4/Upper Caves -4/Upper Caves (discovered 2 exits: *Res / *War) -4/Warlord -3/Proximity Caves -3/Research (discovered 5 exits: *Res x3 / *Arm / *Qua) -3/Quarantine (discovered 3 exits: *Res / *Sec / [*Frg]) -3/Section 7 -2/Research (discovered 2 exits: *Acc / *Tes) -2/Testing -1/Access To Fleet Rendezvous History --------- Turn | Location | Event 10 | -11/Scrapyard | Discovered new exit (range 16) 179 | -11/Scrapyard | Entered Materials 304 | -10/Materials | Build established: Mutant 458 | -10/Materials | Discovered new exit (range 5) 755 | -10/Materials | Discovered new exit (range 7) 1079 | -10/Materials | Derelicts attacked the area 1282 | -10/Materials | Discovered new exit (range 5) 1622 | -10/Materials | Discovered new exit (range 15) 1949 | -10/Materials | Discovered new exit (range 12) 3126 | -10/Materials | Discovered new exit (range 8) 3149 | -10/Materials | Entered Subcaves 3156 | -10/Subcaves | Learned location of Zion (-6) 4950 | -10/Subcaves | A swath of the cavern ceiling suddenly collapsed 5541 | -10/Subcaves | Met a Zionite searching for "candidates" 5587 | -10/Subcaves | A swath of the cavern ceiling suddenly collapsed 6944 | -10/Subcaves | Build established: Scavenger-Mutant 7493 | -10/Subcaves | Visited Clippyterm 7508 | -10/Subcaves | Learned Factory trap positions 7800 | -10/Subcaves | Visited 4L-MR0's lab 7856 | -10/Subcaves | Found Power Bank 7988 | -10/Subcaves | Shifting Twisted Machinery released Riot Gun 8791 | -10/Subcaves | Discovered new exit (range 4) 9362 | -10/Subcaves | Shifting Twisted Machinery released Mak. Shrapnel Gun 9398 | -10/Subcaves | Shifting Twisted Machinery released Mak. Leg 10457 | -10/Subcaves | Discovered new exit (range 7) 11499 | -10/Subcaves | Entered Materials 11499 | -8/Materials | Evolved 4 slots: Utility x4 11763 | -8/Materials | Repaired Spk. Treads 11808 | -8/Materials | Repaired Hvy. Battle Rifle 11980 | -8/Materials | Lost 3 parts (1n2u) 12218 | -8/Materials | Build established: Mutant 12297 | -8/Materials | Lost 3 parts (1u2w) 13041 | -8/Materials | Discovered new exit (range 8) 13202 | -8/Materials | Entered Factory 13202 | -7/Factory | Evolved 2 slots: Utility x2 13203 | -7/Factory | Loaded intel: 116 trap records 13362 | -7/Factory | Identified exit to Storage 13362 | -7/Factory | Identified exit to Lower Caves 13602 | -7/Factory | Attached Power Bank, gained temporary slots: Power x3 13662 | -7/Factory | Garrison activated, responded to threat 13866 | -7/Factory | Garrison activated, responded to threat 15276 | -7/Factory | Entered Lower Caves 16808 | -7/Lower Caves | Learned Factory terminal intel 16915 | -7/Lower Caves | Learned Factory stockpile data 17184 | -7/Lower Caves | Discovered new exit (range 15) 17460 | -7/Lower Caves | Identified exit to Lower Caves 17464 | -7/Lower Caves | Entered another Lower Caves area 17568 | -7/Lower Caves | Discovered new exit (range 12) 17777 | -7/Lower Caves | Identified exit to Factory 17970 | -7/Lower Caves | Build established: Derelict-Mutant 18440 | -7/Lower Caves | Build established: Mutant 18665 | -7/Lower Caves | Discovered new exit (range 13) 18849 | -7/Lower Caves | Identified exit to Data Miner 18851 | -7/Lower Caves | Entered Data Miner 18852 | -7/Data Miner | Discovered new exit (range 6) 18884 | -7/Data Miner | Met Data Miner 18920 | -7/Data Miner | Learned location of Section 7 (-3) 18920 | -7/Data Miner | Acquired the access code to Warlord's prototype stash 18945 | -7/Data Miner | Received God Mode back door access code from Data Miner 19012 | -7/Data Miner | Identified exit to Proximity Caves 19013 | -7/Data Miner | Entered Proximity Caves 19295 | -6/Proximity Caves | System corruption reached 10% 19307 | -6/Proximity Caves | Attracted the attention of an 0b10 checkpoint 19604 | -6/Proximity Caves | Spotted B-75 Beast 19635 | -6/Proximity Caves | Destroyed B-75 Beast 20588 | -6/Proximity Caves | Discovered exit to Factory (range 3) 20605 | -6/Proximity Caves | Entered Factory 20605 | -6/Factory | Evolved 2 slots: Utility x2 20607 | -6/Factory | Loaded intel: 26 terminal locations 20902 | -6/Factory | Build established: Scavenger-Mutant 21152 | -6/Factory | Found Launcher Loader 21350 | -6/Factory | Discovered new exit (range 15) 21373 | -6/Factory | Identified exit to Lower Caves 21374 | -6/Factory | Entered Lower Caves 21446 | -6/Lower Caves | Lost 6 parts (1p2n3u) 21922 | -6/Lower Caves | Build established: Derelict-Mutant 22897 | -6/Lower Caves | Attacked by a faux Warlord 22927 | -6/Lower Caves | Lost 3 parts (3u) 23027 | -6/Lower Caves | Learned Factory non-interactive machine intel 23136 | -6/Lower Caves | Discovered new exit (range 9) 23180 | -6/Lower Caves | Identified exit to Lower Caves 23184 | -6/Lower Caves | Entered another Lower Caves area 23998 | -6/Lower Caves | Learned 4 Factory zone layouts 24040 | -6/Lower Caves | Build established: Scavenger-Mutant 24358 | -6/Lower Caves | Discovered new exit (range 6) 24375 | -6/Lower Caves | Identified exit to Zion 24379 | -6/Lower Caves | Entered Zion 24520 | -6/Zion | Discovered new exit (range 16) 24749 | -6/Zion | System corruption reached 10% 24775 | -6/Zion | System corruption cleaned by Quarantine Array 25970 | -6/Zion | Build established: Derelict-Mutant 26249 | -6/Zion | Learned Factory security intel 26281 | -6/Zion | Learned 8 Factory zone layouts 26641 | -6/Zion | Received a hallucinogenic algorithm 28285 | -6/Zion | Met Imprinter 28394 | -6/Zion | Attacked by Zionites 29785 | -6/Zion | Build established: Scavenger-Mutant 30234 | -6/Zion | Discovered new exit (range 3) 30234 | -6/Zion | Saw the warning signs outside the Deep Caves entrance 30238 | -6/Zion | Identified exit to Deep Caves 30240 | -6/Zion | Entered Deep Caves 30350 | -6/Deep Caves | Found Surveybot 24 Scanner 30354 | -6/Deep Caves | Found Surveybot 24 Chip 30497 | -6/Deep Caves | Attacked by Z-Imprinter 30502 | -6/Deep Caves | Destroyed Z-Imprinter 30535 | -6/Deep Caves | Found Prototype Protection 30535 | -6/Deep Caves | Identified Zio. Weapon Casing 30631 | -6/Deep Caves | Z-Facility disabled 30659 | -6/Deep Caves | Found Zio. Weapon Casing 30688 | -6/Deep Caves | Found Prototype Protection 30688 | -6/Deep Caves | Identified Zio. Heavy Carapace 30711 | -6/Deep Caves | Found Zio. Heavy Carapace 30757 | -6/Deep Caves | Core integrity fell below 50% 30797 | -6/Deep Caves | Found Zio. Heavy Carapace 30882 | -6/Deep Caves | Found Zio. Weapon Casing 31314 | -6/Deep Caves | Spotted AG-69581 31348 | -6/Deep Caves | Destroyed AG-69581 31535 | -6/Deep Caves | Spotted AG-38806 31547 | -6/Deep Caves | Exposed GOLEM chamber 31548 | -6/Deep Caves | Triggered Deep Caves wall 31551 | -6/Deep Caves | Destroyed AG-38806 31566 | -6/Deep Caves | Destroyed AS-65246 31571 | -6/Deep Caves | Destroyed AS-02642 31590 | -6/Deep Caves | Lost 5 parts (1p4u) 31601 | -6/Deep Caves | Destroyed 38 combat bots 31630 | -6/Deep Caves | Found GOLEM Unit 31672 | -6/Deep Caves | Found GOLEM Unit 31922 | -6/Deep Caves | Found GOLEM Unit 31927 | -6/Deep Caves | Found GOLEM Unit 32182 | -6/Deep Caves | Build established: Golem 33251 | -6/Deep Caves | Discovered new exit (range 6) 33262 | -6/Deep Caves | Entered Proximity Caves 33271 | -5/Proximity Caves | Attracted the attention of an 0b10 checkpoint 33525 | -5/Proximity Caves | Spotted B-75 Beast 33748 | -5/Proximity Caves | Received a Behemoth hack from an annoying Tinkerer 33880 | -5/Proximity Caves | Discovered new exit (range 10) 33966 | -5/Proximity Caves | Entered Factory 33966 | -5/Factory | Evolved 2 slots: Power x1, Propulsion x1 33967 | -5/Factory | Identified exit to Extension 33968 | -5/Factory | Identified exit to Upper Caves 33970 | -5/Factory | Loaded intel: 215 non-interactive machine locations 35018 | -5/Factory | Cargo convoy interrupted 35023 | -5/Factory | Entered Extension 35192 | -5/Extension | Rescued a captive Derelict 35434 | -5/Extension | Rescued A7 35637 | -5/Extension | Rescued a captive Derelict 35637 | -5/Extension | Rescued a captive Derelict 35659 | -5/Extension | Rescued a captive Derelict 36103 | -5/Extension | Spotted B-75 Beast 36109 | -5/Extension | Build established: Commander-Golem 36124 | -5/Extension | Allies destroyed B-75 Beast 36140 | -5/Extension | Spotted B-75 Beast 36169 | -5/Extension | Destroyed B-75 Beast 36257 | -5/Extension | Rescued a captive Derelict 36257 | -5/Extension | Rescued a captive Derelict 36594 | -5/Extension | Found GOLEM Unit 36919 | -5/Extension | Rescued a captive Derelict 36920 | -5/Extension | Rescued a captive Derelict 36982 | -5/Extension | Discovered new exit (range 10) 36984 | -5/Extension | Discovered new exit (range 6) 37083 | -5/Extension | Entered Cetus 37083 | -5/Cetus | Accompanied by 23 allies (A7) 37088 | -5/Cetus | Acquired a Cetus Manufacturing Module code from A7 37097 | -5/Cetus | Spotted Cetus Guard 37097 | -5/Cetus | Spotted Cetus Guard 37099 | -5/Cetus | Spotted Cetus Guard 37099 | -5/Cetus | Spotted Cetus Guard 37107 | -5/Cetus | Destroyed Cetus Guard 37114 | -5/Cetus | Allies destroyed Cetus Guard 37120 | -5/Cetus | Allies destroyed Cetus Guard 37123 | -5/Cetus | Allies destroyed Cetus Guard 37146 | -5/Cetus | Lost 5 allies 37350 | -5/Cetus | Escorted A7 to Cetus Mainframe 37362 | -5/Cetus | Discovered new exit (range 21) 37496 | -5/Cetus | Spotted Cetus Guard 37496 | -5/Cetus | Spotted Cetus Guard 37500 | -5/Cetus | Spotted Cetus Guard 37502 | -5/Cetus | Spotted Cetus Guard 37505 | -5/Cetus | Destroyed Cetus Guard 37506 | -5/Cetus | Allies destroyed Cetus Guard 37523 | -5/Cetus | Allies destroyed Cetus Guard 37528 | -5/Cetus | Allies destroyed Cetus Guard 37542 | -5/Cetus | Discovered new exit (range 22) 37544 | -5/Cetus | Extracted ID and sensor layout for unrecognized location from A7's data core 37558 | -5/Cetus | Lost 6 allies 37570 | -5/Cetus | Met Revision 17 37653 | -5/Cetus | Started Cetus Manufacturing Module 37678 | -5/Cetus | Manufactured an Enhanced Grunt 37703 | -5/Cetus | Manufactured an Enhanced Grunt 37728 | -5/Cetus | Manufactured an Enhanced Grunt 37753 | -5/Cetus | Manufactured an Enhanced Grunt 37778 | -5/Cetus | Manufactured an Enhanced Grunt 37833 | -5/Cetus | Security sweep announced 37893 | -5/Cetus | Lost 4 allies 37919 | -5/Cetus | Entered Archives 37919 | -5/Archives | Accompanied by 10 allies 37967 | -5/Archives | Met Zhirov 37969 | -5/Archives | Discovered new exit (range 22) 37973 | -5/Archives | Reinforcements dispatched to Archives 37977 | -5/Archives | Discovered new exit (range 22) 37990 | -5/Archives | Read partially decrypted archive contents 38018 | -5/Archives | Reinforcements dispatched to Archives 38020 | -5/Archives | Zhirov warped through subspace 38034 | -5/Archives | Entered Hub_04(d) 38063 | -5/Hub_04(d) | Lost 4 allies 38366 | -5/Hub_04(d) | Build established: Golem 38591 | -5/Hub_04(d) | Garrison activated, responded to threat 38643 | -5/Hub_04(d) | Destroyed 9 combat bots 39184 | -5/Hub_04(d) | Discovered new exit (range 7) 39184 | -5/Hub_04(d) | Network Hub disabled 39213 | -5/Hub_04(d) | Spotted Lightning 39213 | -5/Hub_04(d) | Spotted Lightning 39213 | -5/Hub_04(d) | Spotted Lightning 39219 | -5/Hub_04(d) | Entered Factory 39219 | -4/Factory | Evolved 2 slots: Propulsion x2 39716 | -4/Factory | Identified exit to Upper Caves 39885 | -4/Factory | Discovered new exit (range 15) 39975 | -4/Factory | Entered Upper Caves 40143 | -4/Upper Caves | Learned Research garrison access intel 41097 | -4/Upper Caves | Discovered new exit (range 9) 41117 | -4/Upper Caves | Identified exit to Upper Caves 41118 | -4/Upper Caves | Entered another Upper Caves area 41149 | -4/Upper Caves | Discovered new exit (range 7) 41159 | -4/Upper Caves | Identified exit to Research 41371 | -4/Upper Caves | Attracted the attention of an 0b10 checkpoint 41701 | -4/Upper Caves | Learned Research emergency access door positions 41978 | -4/Upper Caves | Discovered new exit (range 10) 41991 | -4/Upper Caves | Identified exit to Warlord 42669 | -4/Upper Caves | Entered Warlord 43000 | -4/Warlord | Opened Warlord's prototype stash 43006 | -4/Warlord | Found Prototype Reactor 43011 | -4/Warlord | Found Prototype Device 43011 | -4/Warlord | Identified Exp. Cloaking Device 43024 | -4/Warlord | Found Prototype Device 43024 | -4/Warlord | Identified System Purifier 43029 | -4/Warlord | Found Prototype Processor 43029 | -4/Warlord | Identified Spectral Analyzer 43037 | -4/Warlord | Found Prototype Hackware 43238 | -4/Warlord | Visited the Vortex Lab 43244 | -4/Warlord | Found Prototype Energy Gun 43244 | -4/Warlord | Identified Vortex Rail 43251 | -4/Warlord | Found Prototype Energy Gun 43251 | -4/Warlord | Identified Vortex Shotgun 43252 | -4/Warlord | Warlord's base attacked by MAIN.C 43255 | -4/Warlord | Found Vortex Shotgun 43355 | -4/Warlord | Met Warlord 43602 | -4/Warlord | Warlord forces counterattacked 43630 | -4/Warlord | Spotted Executioner 43663 | -4/Warlord | Destroyed 8 combat bots 43677 | -4/Warlord | Lost 8 allies 43683 | -4/Warlord | Spotted Striker 43687 | -4/Warlord | P-80 Master assimilated allied 3J-L4I(M) 43691 | -4/Warlord | Spotted Striker 43696 | -4/Warlord | Spotted Executioner 43707 | -4/Warlord | Destroyed Striker 43708 | -4/Warlord | Destroyed Executioner 43732 | -4/Warlord | Destroyed 11 combat bots 43744 | -4/Warlord | Found Corrupted Prototype Processor 43749 | -4/Warlord | Lost 4 allies 43751 | -4/Warlord | Spotted Executioner 43787 | -4/Warlord | Spotted Executioner 43835 | -4/Warlord | Discovered new exit (range 16) 43845 | -4/Warlord | Found Prototype Processor 43845 | -4/Warlord | Identified Exp. Core Analyzer (x2) 43846 | -4/Warlord | Lost 12 allies 43852 | -4/Warlord | Spotted Striker 43852 | -4/Warlord | Spotted Striker 43852 | -4/Warlord | Spotted Striker 43861 | -4/Warlord | P-70 Sage assimilated allied B2-6J6(g) 43863 | -4/Warlord | Crushed by falling debris 43868 | -4/Warlord | P-70 Sage assimilated allied KY-XRF(M) 43871 | -4/Warlord | Identified exit to Proximity Caves 43872 | -4/Warlord | Entered Proximity Caves 43895 | -3/Proximity Caves | Lost 3 allies 44421 | -3/Proximity Caves | Spotted B-86 Titan 44580 | -3/Proximity Caves | Attracted the attention of an 0b10 outpost 45077 | -3/Proximity Caves | Discovered exit to Research (range 19) 45228 | -3/Proximity Caves | Entered Research 45228 | -3/Research | Evolved 2 slots: Utility x2 45230 | -3/Research | Loaded intel: 4 garrison access locations 45428 | -3/Research | Revision forces began assault on 0b10 45928 | -3/Research | Research terminal network offline 46209 | -3/Research | Discovered new exit (range 21) 46232 | -3/Research | Identified exit to Research 46319 | -3/Research | Found Prototype Launcher 46319 | -3/Research | Identified Com. Tesla Bomb Launcher 46335 | -3/Research | Discovered exit to Research (range 24) 46538 | -3/Research | Discovered new exit (range 24) 46565 | -3/Research | Identified exit to Armory 46583 | -3/Research | Discovered exit to Research (range 22) 46608 | -3/Research | Identified Vortex Chain Reactor 46743 | -3/Research | Discovered new exit (range 24) 46791 | -3/Research | Identified exit to Quarantine 46981 | -3/Research | Entered Quarantine 47024 | -3/Quarantine | Identified System Mapper 47108 | -3/Quarantine | Found Alien Energy Cannon 47325 | -3/Quarantine | Found Alien Artifact 47325 | -3/Quarantine | Identified Phase Redirector 47427 | -3/Quarantine | Found Alien Artifact 47427 | -3/Quarantine | Identified Core Reset Matrix 47427 | -3/Quarantine | Identified Core Cannon 47427 | -3/Quarantine | Used Core Reset Matrix 47431 | -3/Quarantine | Detected hypermatrix surge 47431 | -3/Quarantine | Sensed 9 artifacts in vicinity 47580 | -3/Quarantine | Discovered exit to Research (range 19) 47590 | -3/Quarantine | Found Subatomic Replicator 47641 | -3/Quarantine | Found Core Stripper 47669 | -3/Quarantine | Found Unknown Device 47669 | -3/Quarantine | Identified Launcher Loader 47718 | -3/Quarantine | Found Phase Armor 47843 | -3/Quarantine | Build established: Hacker-Golem 47899 | -3/Quarantine | Spotted Alpha 7 47932 | -3/Quarantine | Destroyed Alpha 7 47937 | -3/Quarantine | Found Prototype Processor 47954 | -3/Quarantine | Found Prototype Device 47954 | -3/Quarantine | Identified Exp. ECM Suite 47957 | -3/Quarantine | Found Prototype Processor 47997 | -3/Quarantine | Identified Exp. Targeting Computer 47998 | -3/Quarantine | Identified Exp. Target Analyzer 48205 | -3/Quarantine | Crushed by falling debris 48261 | -3/Quarantine | Build established: Golem 48267 | -3/Quarantine | System corruption reached 10% 48327 | -3/Quarantine | Spotted Fortress 48428 | -3/Quarantine | Discovered new exit (range 6) 48428 | -3/Quarantine | Discovered new exit (range 7) 48433 | -3/Quarantine | Identified exit to Section 7 48648 | -3/Quarantine | Entered Section 7 48649 | -3/Section 7 | Detected hypermatrix surge 48649 | -3/Section 7 | Sensed 21 artifacts in vicinity 48673 | -3/Section 7 | Found Prototype Processor 48673 | -3/Section 7 | Identified Exp. Signal Interpreter 48742 | -3/Section 7 | Found Core Reset Matrix 48744 | -3/Section 7 | Sensed 20 artifacts in vicinity 48912 | -3/Section 7 | Found Microwarp Drive 48990 | -3/Section 7 | Found Integrated Dissipator 48990 | -3/Section 7 | Installed Integrated Dissipator, increased core heat dissipation (+20) 49028 | -3/Section 7 | Found Integrated Mediator 49028 | -3/Section 7 | Installed Integrated Mediator, increased core attachment efficiency 49148 | -3/Section 7 | Destroyed 9 combat bots 49317 | -3/Section 7 | Build established: Alien-Golem 49543 | -3/Section 7 | Spotted B-86 Titan 49652 | -3/Section 7 | Repaired Imp. Thunder Leg 49711 | -3/Section 7 | Build established: Alien-Mutant 49712 | -3/Section 7 | Found Integrated Mediator 49712 | -3/Section 7 | Installed Integrated Mediator, increased core attachment efficiency 50043 | -3/Section 7 | Spotted S7 Guard 50111 | -3/Section 7 | Spotted Executioner 50111 | -3/Section 7 | Spotted Executioner 50251 | -3/Section 7 | Found Core Membrane 50251 | -3/Section 7 | Installed Core Membrane, gained immunity to corruption 50342 | -3/Section 7 | Spotted B-99 Colossus 50394 | -3/Section 7 | Found Integrated Reactor 50394 | -3/Section 7 | Installed Integrated Reactor, increased core energy generation (+10) 50397 | -3/Section 7 | Found Integrated Reactor 50397 | -3/Section 7 | Installed Integrated Reactor, increased core energy generation (+10) 50398 | -3/Section 7 | First assault squad dispatched 50399 | -3/Section 7 | Found Integrated Reactor 50399 | -3/Section 7 | Installed Integrated Reactor, increased core energy generation (+10) 50425 | -3/Section 7 | Incoming assault squad redirected 50447 | -3/Section 7 | Found LRC Armor 50447 | -3/Section 7 | Installed LRC Armor, increased core integrity (+250) 50455 | -3/Section 7 | Found LRC Armor 50455 | -3/Section 7 | Installed LRC Armor, increased core integrity (+250) 50458 | -3/Section 7 | Found LRC Insulator 50458 | -3/Section 7 | Installed LRC Insulator, 1 resistance modified: EM +25% 50764 | -3/Section 7 | Spotted Alpha 7 50769 | -3/Section 7 | Spotted Alpha 7 50854 | -3/Section 7 | Discovered exit to Research (range 6) 50861 | -3/Section 7 | Entered Research 50861 | -2/Research | Warlord forces began assault on 0b10 50861 | -2/Research | Evolved 2 slots: Utility x1, Weapon x1 50915 | -2/Research | Found Prototype Processor 50915 | -2/Research | Identified Exp. Core Analyzer 50971 | -2/Research | Research machine network offline 51142 | -2/Research | Build established: Alien-Golem 51226 | -2/Research | Met up with Warlord 51366 | -2/Research | Borebot progress halted 51369 | -2/Research | Discovered new exit (range 14) 51385 | -2/Research | Identified exit to Access 51411 | -2/Research | Spotted Executioner 51446 | -2/Research | Lost 8 allies 51515 | -2/Research | Borebot progress halted 51536 | -2/Research | Spotted Striker 51578 | -2/Research | Discovered new exit (range 16) 51606 | -2/Research | Spotted Striker 51611 | -2/Research | Spotted Striker 51615 | -2/Research | Destroyed Striker 51621 | -2/Research | Destroyed Striker 51631 | -2/Research | Borebot progress halted 51642 | -2/Research | Found Prototype Processor 51642 | -2/Research | Identified Exp. Melee Analysis Suite 51741 | -2/Research | Destroyed Striker 51745 | -2/Research | Build established: Alien-Gunner 51925 | -2/Research | Spotted Striker 51926 | -2/Research | Spotted Striker 51936 | -2/Research | Destroyed Striker 51938 | -2/Research | Spotted Executioner 51940 | -2/Research | Destroyed Executioner 51944 | -2/Research | Spotted Striker 51944 | -2/Research | Spotted Executioner 52019 | -2/Research | Spotted Striker 52022 | -2/Research | Spotted Striker 52043 | -2/Research | Identified exit to Testing 52045 | -2/Research | Entered Testing 52074 | -2/Testing | Lost 8 allies 52162 | -2/Testing | Found Prototype Energy Cannon 52162 | -2/Testing | Identified Hpw. Disruptor Cannon 52251 | -2/Testing | Unchained authorized (CL-0N3) 52258 | -2/Testing | Found Prototype Energy Cannon 52258 | -2/Testing | Identified Null Cannon 52470 | -2/Testing | U-05 Engineer reconstituted as Alpha 7 52471 | -2/Testing | Spotted Alpha 7 52479 | -2/Testing | Destroyed Alpha 7 52479 | -2/Testing | Alpha 7 reconstituted as CL-0N3 52514 | -2/Testing | Build established: Alien-Golem 52555 | -2/Testing | Repaired Broken Prc. Energy Filter? 52652 | -2/Testing | Repaired Lrn. Sensor Array 53024 | -2/Testing | Spotted PD-PTTMX105N9 53033 | -2/Testing | R-10 Processor reconstituted as Alpha 7 53033 | -2/Testing | Spotted Alpha 7 53075 | -2/Testing | Destroyed PD-PTTMX105N9 53081 | -2/Testing | Destroyed Alpha 7 53081 | -2/Testing | Alpha 7 reconstituted as CL-0N3 53216 | -2/Testing | Discovered exit to Access (range 8) 53246 | -2/Testing | Entered Access 53246 | -1/Access | Evolved 2 slots: Utility x2 53455 | -1/Access | Unchained authorized (CL-0N3) 53753 | -1/Access | Fabricated Graviton Cannon? 54153 | -1/Access | Found Prototype Processor 54153 | -1/Access | Identified Exp. Signal Interpreter 54248 | -1/Access | S-43 Plague reconstituted as Combat Programmer 54248 | -1/Access | Spotted Combat Programmer 54262 | -1/Access | Destroyed Combat Programmer 54262 | -1/Access | Combat Programmer reconstituted as CL-0N3 54294 | -1/Access | Destroyed 9 combat bots 54618 | -1/Access | Spotted B-99 Colossus 54687 | -1/Access | Spotted Alpha 7 54701 | -1/Access | Destroyed Alpha 7 54701 | -1/Access | Alpha 7 reconstituted as CL-0N3 54725 | -1/Access | Destroyed 19 combat bots 54783 | -1/Access | Lost 3 parts (1p1u1w) 54786 | -1/Access | Discovered new exit (range 6) 54793 | -1/Access | Identified exit to Surface 54794 | *** | Heading to fleet! Last Messages --------------- 54753_ U-05 Engineer builds a Wall. 54755_ Penetrated by Slug. 54755_ K-01 Serf collects debris. 54756_ M-36 Artificer repairs M-36 Artificer. 54756_ Slug penetrates K-01 Serf. 54756_ Slug penetrates Wall. 54756_ Microwarped (distance 13). 54756_ Penetrated by Slug. 54756_ Slug penetrates Wall. 54757_ Microwarped (distance 13). 54758_ Microwarped (distance 8). 54781_ Connecting with Terminal... 54786_ Beam penetrates Sealed Barrier. 54786_ Sealed Barrier breached. 54786_ Beam penetrates Main Access Shell. 54786_ Main Access Shell breached. 54786_ EXIT=FOUND 54786_ Beam penetrates Main Access Shell. 54793_ EXIT=IDENTIFIED: SURFACE [Achievement: I Was Wrong!] Map ----- +----------------------------------------------------+ | ?????????????????????????????????????+ """""" | | ?????????????????????????????????????# "" | | ?????????????????????????????????????# "" | | ???????????????????????############### | | ?????????????????????? | | ?????????????????????? | | ?????????????????????? | | ?????????????????????? ######### | | ???????????????????????############# #???????? | | ???????????????????????????????????# #####????? | | ??????????????###################### !#????? | | ????????????? " #????? | | ????????????? +????? | | ????????????????????# ""######### #????? | | ????????????????????# ""#????????# ##????? | | ????????????????????# ""#????????? #?????? | | ????????????????????# T#????????? #?????? | | ????????????????????# ""#????????? #?????? | | ????????????????????# ""#?????????? #?????? | | ????????????????????# ""#???????????#?????? | | ????????????????????""""" """"""?????????????????? | | ????????????????????# #?????????????????? | | ????????????????????# #?????????????????? | | ????????????????????# "" """ #?????????????????? | | ????????????????????# " "? #?????????????????? | | ????????????????????# ?" @" "??#?????????????????? | | ????????????????????#??" "" "????????????????????? | | ???????????????????????" "????????????????????? | | ???????????????????????"" """????????????????????? | | ???????????????????????? ??????????????????????? | | ????????????????????????" "??????????????????????? | | ????????????????????????" "??????????????????????? | | ????????????????????????" "??????????????????????? | | ????????????????????????" "??????????????????????? | | ????????????????????????? ???????????????????????? | | ????????????????????????? ???????????????????????? | | ????????????????????????? ???????????????????????? | | ????????????????????????? ???????????????????????? | | ????????????????????????? ???????????????????????? | | ????????????????????????? ???????????????????????? | | ????????????????????????? ???????????????????????? | | ?????????????????????????????????????????????????? | | ?????????????????????????????????????????????????? | | ?????????????????????????????????????????????????? | | ?????????????????????????????????????????????????? | | ?????????????????????????????????????????????????? | | ?????????????????????????????????????????????????? | | ?????????????????????????????????????????????????? | | ?????????????????????????????????????????????????? | | ?????????????????????????????????????????????????? | +----------------------------------------------------+ Best States ------------- Heat Dissipation 136 Energy Generation 85 Energy Capacity 2100 Matter Stores 300 Matter Capacity 300 Sight Range 24 Robot Scan Range 18 Terrain Scan Range 24 Terrain Scan Density 2010 ECM Strength 3 Jamming Range 16 Cloak Strength 4 Additional Mass Support 20 EM Shielding 4 Armor Coverage 2400 Resistance: KI 15 Resistance: TH 25 Resistance: EX 15 Resistance: EM 40 Resistance: I 15 Resistance: S 15 Resistance: P 15 Power Shielding 90 Propulsion Shielding 33 Weapon Shielding 100 Weapon Cycling 20 Phase Shifting 8 Evasion (%) 90 Targeting Accuracy 20 Target Analysis 10 Core Analysis 8 Recoil Reduction 2 Energy Filtering 50 Offensive Hacking 20 Item Schematics ----------------- Graviton Cannon | -2/Testing | Archive Exp. System Shield | -2/Testing | Archive Robot Schematics ------------------ A-27 Freighter | -2/Testing | Archive Fabricated ------------ Graviton Cannon | x1 | -1/Access Repaired ---------- Spk. Treads | 45% | -8/Materials Hvy. Battle Rifle | 50% | -8/Materials Imp. Thunder Leg | 25% | -3/Section 7 Prc. Energy Filter | 21% | -2/Testing | Broken Lrn. Sensor Array | 18% | -2/Testing Studied --------- None Alien Tech Used ----------------- Phase Redirector Core Reset Matrix Core Stripper Phase Armor Integrated Dissipator Integrated Mediator Microwarp Drive Core Membrane Integrated Reactor LRC Armor LRC Insulator Core Cannon Achievements -------------- I Was Wrong! Challenges ------------ None Game ------ Seed GrenadeConcussiveInjector Manual? 0 Play Time 07:41:38 Cumulative 305.5 hours Start 2025.12.16 @ 00:18:49 End 2025.12.17 @ 00:17:17 Sessions 8 Manual Loads 0 Difficulty Rogue Special Mode None Game No. 214 Rogue 214 Adventurer 0 Explorer 0 Win Type 2 Total 14 Types 7/1/3/1/0/0/0/1/0/1 Lore% 75 Gallery% 77 Achievement% 70 Wizard Run 0 Options --------- Layout 2 ASCII 0 Keyboard 1 Movement Arrows Keybinds 0 Fullscreen 1 Font 32/SmallcapsGlow Map View 50x44 Zoom Use 0% Tactical HUD 1 Map Filters NONE Filters NONE Steam 1 RUN: bb88fe1b-9d9f-40e1-b3b1-1a50ac3dba7e